{"text_format":"1","workbook":"xlsx","n_sheets":6,"sheets":["Sheet1","الانشطة","إحصائيات","تكافؤ الفرص","تقرير النشاط","WordCopy"],"not_rendered":{"charts":1,"images":1,"macros":1,"external_links":0,"defined_names":3,"comments":0,"pivot_tables":0},"unopened":[],"bounds":{"document_bytes":16777216,"sheet_cells":100000,"rows_first":2000,"rows_last":500,"rows_between":2000,"halvings":0,"cell_chars":16384,"cell_head_chars":4096},"cells_cut":0,"cells_raw":0,"read":"whole","date_system":"1900"}

{"sheet":"Sheet1","index":0,"n_rows":521,"n_cols":12,"rows_kept":521,"cut":false,"hidden":false,"merged":[[151,10,151,11]]}
[]
[]
[]
[null,null," من تاريخ","2024-01-01","الى تاريخ","2024-07-14","مفتاح"]
[]
[]
[null,null,null,"تقرير أنشطة وفعاليات الإدارة المركزية للشعب واللجان الثقافية \nعن الفترة من 1 يناير 2024 حتى 6 يونيو 2024"]
["م","الرقم","تاريخ النشاط","اسم النشاط","نوع النشاط","الجهة المنظمة","موعد النشاط","مكان النشاط","رابط اليوتيوب","رابط الفيس","ملاحظات","مفتاح"]
[{"$f":"IF(C9>0,SUBTOTAL(3,$C$9:C9),\"\")","v":1},{"$f":"ROW()-8","v":1},"2024-01-03","محاضرة \"سكان مصر وتحديات المستقبل\"","ندوات وأمسيات المجلس الأعلى للثقافة","لجنة الجغرافيا والبيئة","5م","5م المجلس","رابط اليوتيوب","رابط الفيس","https://youtu.be/6gMb5z82lE0https://fb.watch/pmj9a62K7R/"]
[{"$f":"IF(C10>0,SUBTOTAL(3,$C$9:C10),\"\")","v":2},{"$f":"ROW()-8","v":2},"2024-01-03","ندوة \"منصات التواصل الاجتماعي بين المصداقية والتضليل\"","ندوات وأمسيات المجلس الأعلى للثقافة","لجنة الثقافة الرقمية والبنية المعلوماتية","7م","7م أونلاين","رابط اليوتيوب","رابط الفيس","https://youtu.be/CQPlTi7aIgA\nhttps://fb.watch/ps_iH1Wl6H/","التواصل"]
[{"$f":"IF(C11>0,SUBTOTAL(3,$C$9:C11),\"\")","v":3},3,"2024-01-11","ندوة \"صورة العربي في أدب الأطفال العبري - العنصرية في مواجهة البراءة\"","ندوات وأمسيات المجلس الأعلى للثقافة","لجنة فنون الطفل","5م","5م الفنون","رابط اليوتيوب","رابط الفيسبوك",null,"طفل"]
[{"$f":"IF(C12>0,SUBTOTAL(3,$C$9:C12),\"\")","v":4},4,"2024-01-14","\"أمسية شعرية فلسطين في عيون الشعراء العرب\"","ندوات وأمسيات المجلس الأعلى للثقافة","لجنة الشعر",5,"5:30م المجلس","https://www.youtube.com/watch?v=nvyT_xpKyzQ","https://www.facebook.com/ConferenceDepartment/videos/1089949958859309/",null,"شعر"]
[{"$f":"IF(C13>0,SUBTOTAL(3,$C$9:C13),\"\")","v":5},5,"2024-01-15","ندوة \"استخدام الذكاء الإصطناعي لتوثيق التراث\"","ندوات وأمسيات المجلس الأعلى للثقافة","لجنة الثقافة الرقمية والبنية المعلوماتية الثقافية بالتعاون مع المنظمة العربية للتنمية الإدارية وبالتعاون مع مركز جمعة الماجد للثقافة والتراث","12ظ","12ظ أونلاين","رابط اليوتيوب","رابط الفيسبوك",null,"الذكاء الاصطناعي"]
[{"$f":"IF(C14>0,SUBTOTAL(3,$C$9:C14),\"\")","v":6},6,"2024-01-15","\"قراءة في كتاب المرايا المتجاورة .. تأليف أ.د. جابر عصفور\" - أمسية ثقافية","ندوات وأمسيات المجلس الأعلى للثقافة","أمانة المؤتمرات بالتعاون مع صالون جابر عصفور الثقافي","5م","5م المجلس","رابط اليوتيوب","رابط الفيسبوك"]
[{"$f":"IF(C15>0,SUBTOTAL(3,$C$9:C15),\"\")","v":7},7,"2024-01-16","\"منتدى الثقافة القانونية\"ندوة \"الوطنية والانتماء\"","ندوات وأمسيات المجلس الأعلى للثقافة","لجنة ثقافة القانون والمواطنة وحقوق الإنسان","5م","5م المجلس","رابط اليوتيوب","رابط الفيسبوك",null,"مبادرة وعي"]
[{"$f":"IF(C16>0,SUBTOTAL(3,$C$9:C16),\"\")","v":8},8,"2024-01-16","ندوة \"الوعي الوطني والتحديات والمخاطر الراهنة\"","ندوات وأمسيات المجلس الأعلى للثقافة","لجنة التربية وعلم النفس","6م","6م المؤتمرات","رابط اليوتيوب","رابط الفيسبوك"]
[{"$f":"IF(C17>0,SUBTOTAL(3,$C$9:C17),\"\")","v":9},9,"2024-01-17","أمسية ثقافية بعنوان\"تواصل\"","ندوات وأمسيات المجلس الأعلى للثقافة","لجنة السرد القصصي والروائي","5م","5م المؤتمرات","رابط اليوتيوب","رابط الفيسبوك",null,"تواصل"]
[{"$f":"IF(C18>0,SUBTOTAL(3,$C$9:C18),\"\")","v":10},10,"2024-01-17","مائدة مستديرة بعنوان \"الإعلام ودعم الفعاليات الثقافية ... معرض الكتاب نموذجا\"","ندوات وأمسيات المجلس الأعلى للثقافة","لجنة الإعلام","5م","5م المجلس","رابط اليوتيوب","رابط الفيسبوك"]
[{"$f":"IF(C19>0,SUBTOTAL(3,$C$9:C19),\"\")","v":11},11,"2024-01-18","ورشة العمل التدريبية الإقليمية حول \"إعداد قوائم الحصر للتراث وملفات الترشيح على قوائم التراث في العالم الإسلامي والتراث العالمي\"\n18 - 23 يناير 2024","دورة تدريبية","أمانة المؤتمرات بالتعاون مع اللجنة الوطنية المصرية للتربية والعلوم والثقافة لليونسكو","طول","طول اليوم المجلس - المؤتمرات","https://www.youtube.com/watch?v=nvyT_xpKyzQ","https://www.facebook.com/ConferenceDepartment/videos/1089949958859309/"]
[{"$f":"IF(C20>0,SUBTOTAL(3,$C$9:C20),\"\")","v":12},12,"2024-01-21","ندوة \"نجيب محفوظ والترجمة\"بمناسبة الاحتفال بذكرى ميلاد الأديب المصري الكبير نجيب محفوظ","ندوات وأمسيات المجلس الأعلى للثقافة","لجنة الترجمة بالتعاون مع لجنة الدراسات الأدبية والنقدية","6م","6م المجلس","رابط اليوتيوب","رابط الفيسبوك"]
[{"$f":"IF(C21>0,SUBTOTAL(3,$C$9:C21),\"\")","v":13},13,"2024-01-22","ندوة: \"حوار ثقافي \"أونلاين","ندوات وأمسيات المجلس الأعلى للثقافة","لجنة السرد القصصي والروائي","12ظ","12ظ أونلاين","رابط اليوتيوب","رابط الفيسبوك",null,"حوار"]
[{"$f":"IF(C22>0,SUBTOTAL(3,$C$9:C22),\"\")","v":14},14,"2024-01-22","محاضرة \"مخاطر طمس الهوية التاريخية للقدس وغزة بين تدمير الحجر وتهجير البشر\"","ندوات وأمسيات المجلس الأعلى للثقافة","لجنة التاريخ والآثار","5م","5م المجلس"]
[{"$f":"IF(C23>0,SUBTOTAL(3,$C$9:C23),\"\")","v":15},15,"2024-01-23","ندوة \"الثقافة والتقدم\"","ندوات وأمسيات المجلس الأعلى للثقافة","لجنة الفلسفة وعلم الاجتماع والأنثروبولوجيا","12 ظالفنون","12ظ الفنون"]
[{"$f":"IF(C24>0,SUBTOTAL(3,$C$9:C24),\"\")","v":16},16,"2024-01-24","ندوة \"الذكاء الإصطناعي وتشكيل الوعي المجتمعي\"","ندوات وأمسيات المجلس الأعلى للثقافة","لجنة تنمية الثقافة العلمية و التفكير الابتكاري بالتعاون مع لجنة الثقافة الرقمية و البنية المعلوماتية الثقافية","6م","6م المجلس","رابط اليوتيوب","رابط الفيسبوك",null,"الذكاء الاصطناعي"]
[{"$f":"IF(C25>0,SUBTOTAL(3,$C$9:C25),\"\")","v":17},17,"2024-01-27","ندوة *\"الصناعات الثقافية والتنمية المستدامة\"*","ندوات وأمسيات المجلس الأعلى للثقافة","أمانة المؤتمرات","12ظ","12ظ قاعة المؤسسات الثقافية - بلازا ١معرض الكتاب","رابط اليوتيوب","رابط الفيسبوك",null,"التنمية المستدامة"]
[{"$f":"IF(C26>0,SUBTOTAL(3,$C$9:C26),\"\")","v":18},18,"2024-01-28","ندوة \"التوثيق والنشر للفنون التشكيلية والعمارة\"","ندوات وأمسيات المجلس الأعلى للثقافة","أمانة المؤتمرات","12ظ","12ظ قاعة المؤسسات الثقافية - بلازا ١معرض الكتاب","رابط اليوتيوب","رابط الفيسبوك"]
[{"$f":"IF(C27>0,SUBTOTAL(3,$C$9:C27),\"\")","v":19},19,"2024-01-29","ندوة \"الذكاء الاصطناعى والتحول الرقمي - الفرص والتحديات\"","ندوات وأمسيات المجلس الأعلى للثقافة","أمانة المؤتمرات","12ظ","12ظ قاعة المؤسسات الثقافية - بلازا ١معرض الكتاب","رابط اليوتيوب","رابط الفيسبوك",null,"الذكاء الاصطناعي"]
[{"$f":"IF(C28>0,SUBTOTAL(3,$C$9:C28),\"\")","v":20},20,"2024-01-30","حفل إطلاق العدد الأول من مجلة \" ثقافة قانونية \" دورية الكترونية متخصصة","ندوات وأمسيات المجلس الأعلى للثقافة","لجنة ثقافة القانون والمواطنة وحقوق الإنسان","5م","5م الفنون","رابط اليوتيوب","رابط الفيسبوك",null,"ثقافة قانونية"]
[{"$f":"IF(C29>0,SUBTOTAL(3,$C$9:C29),\"\")","v":21},21,"2024-01-30","\"مبادرة وعي بالقانون\" - الحلقة الأولىالمستشار الدكتور/ خالد القاضي","سلسلة بعنوان مبادرة وعي بالقانون","لجنة ثقافة القانون والمواطنة وحقوق الإنسان","8م","8م أونلاين","رابط اليوتيوب","رابط الفيسبوك",null,"مبادرة وعي"]
[{"$f":"IF(C30>0,SUBTOTAL(3,$C$9:C30),\"\")","v":22},22,"2024-01-31","ندوة \"دور الملكية الفكرية في تنمية المشروعات الناشئة لدعم الإقتصاد المصري\"","ندوات وأمسيات المجلس الأعلى للثقافة","لجنة حماية الملكية الفكرية بالتعاون مع لجنة  الإقتصاد والعلوم السياسية","6م","6م المجلس","رابط اليوتيوب","رابط الفيسبوك"]
[{"$f":"IF(C31>0,SUBTOTAL(3,$C$9:C31),\"\")","v":23},23,"2024-01-31","مجلة ثقافة قانونية - العدد الأول مجلة فصلية","مجلة ثقافة قانونية - العدد الأول","   لجنة ثقافة القانون والمواطنة وحقوق الإنسان",null,"أونلاين",null,"رابط الفيسبوك"]
[{"$f":"IF(C32>0,SUBTOTAL(3,$C$9:C32),\"\")","v":24},24,"2024-02-05","حلقة نقاشية حول \"إعادة إنتاج التراث الشعبي\"","ندوات وأمسيات المجلس الأعلى للثقافة","لجنة التراث الثقافي غير المادي","5م","5م المجلس","رابط اليوتيوب","رابط الفيسبوك",null,"التراث الشعبي"]
[{"$f":"IF(C33>0,SUBTOTAL(3,$C$9:C33),\"\")","v":25},25,"2024-02-06","\"الدراسات المستقبلية\"دكتور/ محمد أحمد عدوي الحلقة السابعة والأربعون","سلسلة ثقافة تك","لجنة الثقافة الرقمية والبنية المعلوماتية الثقافية بالتعاون مع أمانة المؤتمرات","7م أونلاين","7م أونلاين","رابط اليوتيوب","رابط الفيسبوك"]
[{"$f":"IF(C34>0,SUBTOTAL(3,$C$9:C34),\"\")","v":26},26,"2024-02-06","\"مبادرة وعي بالقانون\" - الحلقة الثانية المستشار/ نير عثمان","سلسلة بعنوان مبادرة وعي بالقانون","لجنة ثقافة القانون والمواطنة وحقوق الإنسان","8م أونلاين","8م أونلاين","رابط اليوتيوب","رابط الفيسبوك",null,"مبادرة وعي"]
[{"$f":"IF(C35>0,SUBTOTAL(3,$C$9:C35),\"\")","v":27},27,"2024-02-07","ندوة \"رؤية مقترحة للتعليم الجغرافي والتربية البيئية في المناهج الدراسية\"","ندوات وأمسيات المجلس الأعلى للثقافة","لجنة الجغرافيا والبيئة بالتعاون مع لجنة التربية وعلم النفس","5م","5م المجلس","رابط اليوتيوب","رابط الفيسبوك"]
[{"$f":"IF(C36>0,SUBTOTAL(3,$C$9:C36),\"\")","v":28},28,"2024-02-08","ندوة \"تقنيات و أدوات الذكاء الاصطناعي وحماية البيانات الشخصية\"","ندوات وأمسيات المجلس الأعلى للثقافة","لجنة الشباب بالتعاون مع لجنة الثقافة الرقمية و البنية المعلوماتية الثقافية","4م","4م المجلس","رابط اليوتيوب","رابط الفيسبوك",null,"الذكاء الاصطناعي"]
[{"$f":"IF(C37>0,SUBTOTAL(3,$C$9:C37),\"\")","v":29},29,"2024-02-11","ندوة \"الذكاء الاصطناعي والترجمة\"","ندوات وأمسيات المجلس الأعلى للثقافة","لجنة الترجمة بالتعاون مع لجنة الثقافة الرقمية والبنية المعلوماتية الثقافية","6م","6م المجلس","رابط اليوتيوب","رابط الفيسبوك",null,"الذكاء الاصطناعي"]
[{"$f":"IF(C38>0,SUBTOTAL(3,$C$9:C38),\"\")","v":30},30,"2024-02-11","أمسية شعرية \"إبداعات الشباب\"","ندوات وأمسيات المجلس الأعلى للثقافة","لجنة الشعر","6م","6م الندوات","رابط اليوتيوب","رابط الفيسبوك",null,"شباب"]
[{"$f":"IF(C39>0,SUBTOTAL(3,$C$9:C39),\"\")","v":31},31,"2024-02-13","\"محاضرة \"الذكاء الاصطناعي ونشر الأخبار الكاذبة\"دكتور/ فتحي حسين عامرالحلقة الثامنة والأربعون","سلسلة ثقافة تك","لجنة الثقافة الرقمية والبنية المعلوماتية الثقافية بالتعاون مع أمانة المؤتمرات","7م أونلاين","7م أونلاين","رابط اليوتيوب","رابط الفيسبوك",null,"الذكاء الاصطناعي"]
[{"$f":"IF(C40>0,SUBTOTAL(3,$C$9:C40),\"\")","v":32},32,"2024-02-13","\"مبادرة وعي بالقانون\" - الحلقة الثالثةالمستشار/ جميل حليم","سلسلة بعنوان مبادرة وعي بالقانون","لجنة ثقافة القانون والمواطنة وحقوق الإنسان","8م أونلاين","8م أونلاين","رابط اليوتيوب","رابط الفيسبوك",null,"مبادرة وعي"]
[{"$f":"IF(C41>0,SUBTOTAL(3,$C$9:C41),\"\")","v":33},33,"2024-02-14","مائدة مستديرة \"المكاتب الإعلامية والثقافية فى الخارج بين الواقع والمأمول\"","ندوات وأمسيات المجلس الأعلى للثقافة","لجنة الإعلام بالتعاون مع لجنة تطوير الإدارة الثقافية وتشريعاتها","1ظ الفنون","1ظ الفنون","رابط اليوتيوب","رابط الفيسبوك"]
[{"$f":"IF(C42>0,SUBTOTAL(3,$C$9:C42),\"\")","v":34},34,"2024-02-14","ندوة \"دور المنظمات الدولية والإقليمية في القضايا العالمية .. القضية الفلسطينية نموذجًا\"","ندوات وأمسيات المجلس الأعلى للثقافة","لجنة الإقتصاد والعلوم السياسية","6م","6م الندوات","رابط اليوتيوب","رابط الفيسبوك","https://fb.watch/qz_FWwQkBB/"]
[{"$f":"IF(C43>0,SUBTOTAL(3,$C$9:C43),\"\")","v":35},35,"2024-02-14","محاضرة بعنوان \"تأثير التكنولوجيا على إدارة الأزمات في الإقليم\"","ندوات وأمسيات المجلس الأعلى للثقافة","لجنة الثقافة الرقمية والبنية المعلوماتية الثقافية","6م","6م المؤتمرات","رابط اليوتيوب","رابط الفيسبوك","https://fb.watch/qz_ERzEuep/"]
[{"$f":"IF(C44>0,SUBTOTAL(3,$C$9:C44),\"\")","v":36},36,"2024-02-18","ندوة \"دور الهوية المكانية والبيئية في تأصيل الانتماء لدى الشباب\"","ندوات وأمسيات المجلس الأعلى للثقافة","لجنة الجغرافيا والبيئة بالتعاون مع كلية الدراسات الإنسانية – جامعة الأزهر","11ص","11ص كلية الدراسات الإنسانية - بنات - جامعة الأزهر","رابط اليوتيوب","رابط الفيسبوك","https://fb.watch/qz_ODhtaK0/","شباب"]
[{"$f":"IF(C45>0,SUBTOTAL(3,$C$9:C45),\"\")","v":37},37,"2024-02-18","ملتقى بعنوان \"شباب صنع في مصر.. نحو مستقبل مصر\"","ندوات وأمسيات المجلس الأعلى للثقافة","لجنة الشباب","11ص","11ص مجمع عمال مصر - مدينة 6 أكتوبر","رابط اليوتيوب","رابط الفيسبوك","https://fb.watch/qz-7pA_rFt/","شباب"]
[{"$f":"IF(C46>0,SUBTOTAL(3,$C$9:C46),\"\")","v":38},38,"2024-02-18","ندوة \"مقارب للأدب الفلسطيني\"","ندوات وأمسيات المجلس الأعلى للثقافة","لجنة السرد القصصي والروائي","1م","1م المجلس","رابط اليوتيوب","رابط الفيسبوك","https://fb.watch/qA5KFKEgoG/"]
[{"$f":"IF(C47>0,SUBTOTAL(3,$C$9:C47),\"\")","v":39},39,"2024-02-18","حلقة نقاشية بعنوان \"المؤسسات الثقافية الرسمية : إشكالية تطوير الموارد البشرية\"","ندوات وأمسيات المجلس الأعلى للثقافة","لجنة تطوير الإدارة الثقافية وتشريعاتها","5م","5م الفنون","رابط اليوتيوب","رابط الفيسبوك","https://fb.watch/qz-2Yyk8pe/\n"]
[{"$f":"IF(C48>0,SUBTOTAL(3,$C$9:C48),\"\")","v":40},40,"2024-02-19","محاضرة بعنوان \"الشخصية المصرية وبداية التكوين\"","ندوات وأمسيات المجلس الأعلى للثقافة","لجنة التاريخ والآثار","11ص","11ص كلية التربية - جامعة عين شمس","رابط اليوتيوب","رابط الفيسبوك","https://fb.watch/qz-8bLSMYt/"]
[{"$f":"IF(C49>0,SUBTOTAL(3,$C$9:C49),\"\")","v":41},41,"2024-02-19","ندوة: \"حوار ثقافي \"أونلاين","ندوات وأمسيات المجلس الأعلى للثقافة","لجنة السرد القصصي والروائي","12ظ","12ظ أونلاين","رابط اليوتيوب","رابط الفيسبوك","https://fb.watch/qz-6yUxVYW/","حوار"]
[{"$f":"IF(C50>0,SUBTOTAL(3,$C$9:C50),\"\")","v":42},42,"2024-02-19","ندوة \"التراث الرقمي بين الواقع والمأمول\"","ندوات وأمسيات المجلس الأعلى للثقافة","لجنة الكتاب والنشر بالتعاون مع بيت التراث المصري ولجنة التراث الثقافي الغير مادي ولجنة حماية الملكية الفكرية ولجنة الثقافة الرقمية والبنية المعلوماتية الثقافية","5م","5م المجلس","رابط اليوتيوب","رابط الفيسبوك","https://fb.watch/qz-9qctSSp/","التراث الرقمي"]
[{"$f":"IF(C51>0,SUBTOTAL(3,$C$9:C51),\"\")","v":43},43,"2024-02-20","\"المنتدى العالمي الثالث لثقافة السلام العادل\"\n20 - 22 فبراير","ندوات وأمسيات المجلس الأعلى للثقافة","أمانة المؤتمرات بالتعاون مع مؤسسة عبد العزيز سعود البابطين الثقافية","طوال","طوال اليوم فندق والدورف أستوريا القاهرة هليوبوليس"]
[{"$f":"IF(C52>0,SUBTOTAL(3,$C$9:C52),\"\")","v":44},44,"2024-02-20","\"منتدى الثقافة القانونية\"ندوة \"مواجهة الشائعات وتزييف الوعي\"","ندوات وأمسيات المجلس الأعلى للثقافة","لجنة ثقافة القانون والمواطنة وحقوق الإنسان","6م","6م المجلس","رابط اليوتيوب","رابط الفيسبوك","https://fb.watch/qA1NqSYK2I/"]
[{"$f":"IF(C53>0,SUBTOTAL(3,$C$9:C53),\"\")","v":45},45,"2024-02-20","\"مبادرة وعي بالقانون\" - الحلقة الرابعةالمستشارة/ رشا الشنواني","سلسلة بعنوان مبادرة وعي بالقانون","لجنة ثقافة القانون والمواطنة وحقوق الإنسان","8م","8م أونلاين","رابط اليوتيوب","رابط الفيسبوك","https://fb.watch/qz-Fk54XfU/"]
[{"$f":"IF(C54>0,SUBTOTAL(3,$C$9:C54),\"\")","v":46},46,"2024-02-21","ندوة : (حقوق مصر في حماية حضارتها وفق قانون الملكية الفكرية)","ندوات وأمسيات المجلس الأعلى للثقافة","لجنة حماية الملكية الفكرية بالتعاون مع لجنة التاريخ والآثار","6م","6م الفنون",null,null,null,"ملكية فكرية"]
[{"$f":"IF(C55>0,SUBTOTAL(3,$C$9:C55),\"\")","v":47},47,"2024-02-21","أمسية ثقافية بعنوان\"تواصل\"","ندوات وأمسيات المجلس الأعلى للثقافة","لجنة السرد القصصي والروائي","5م","5م المؤتمرات","رابط اليوتيوب","رابط الفيسبوك","https://fb.watch/qA0fttHjk4/","تواصل"]
[{"$f":"IF(C56>0,SUBTOTAL(3,$C$9:C56),\"\")","v":48},48,"2024-02-21","ندوة \"التقاطع بين العلوم والموسيقى من العصور القديمة حتى الوقت الحاضر\"","ندوات وأمسيات المجلس الأعلى للثقافة","لجنة تنمية الثقافة العلمية والتفكير الإبتكاري بالتعاون مع لجنة الموسيقى والأوبرا والبالية","6م","6م المجلس","رابط اليوتيوب","رابط الفيسبوك","https://fb.watch/qA5I2wo7ih/"]
[{"$f":"IF(C57>0,SUBTOTAL(3,$C$9:C57),\"\")","v":49},49,"2024-02-21","أمسية للاحتفاء بالناقد والشاعر الفلسطيني / إبراهيم السعافين ضمن فعاليات سلسلة الاحتفاء بكبار النقاد وعلماء اللغة المصريين والعرب","ندوات وأمسيات المجلس الأعلى للثقافة","لجنة الدراسات الأدبية والنقدية واللغوية","7م","7م أونلاين","رابط اليوتيوب","رابط الفيسبوك","https://fb.watch/qA0ewgVr7R/"]
[{"$f":"IF(C58>0,SUBTOTAL(3,$C$9:C58),\"\")","v":50},50,"2024-02-25","ندوة \"الاحتفال باليوم العالمى للقصة القصيرة\"","ندوات وأمسيات المجلس الأعلى للثقافة","لجنة السرد القصصي والروائي","12ظ","12ظ بمقر صالون جامعة الإسكندرية","رابط اليوتيوب","رابط الفيسبوك","https://fb.watch/qA1FSK9x2g/"]
[{"$f":"IF(C59>0,SUBTOTAL(3,$C$9:C59),\"\")","v":51},51,"2024-02-25","أمسية مصر - بنجلاديش .. علاقات ثقافية","ندوات وأمسيات المجلس الأعلى للثقافة","المجلس الأعلى للثقافة بالتعاون مع قطاع العلاقات الثقافية الخارجية وبالتعاون مع وزارة الخارجية ( النادي الدبلوماسي المصري)","5م","5م المجلس","رابط اليوتيوب","رابط الفيسبوك","https://fb.watch/qA1Ey2SRcH/","علاقات ثقافية"]
[{"$f":"IF(C60>0,SUBTOTAL(3,$C$9:C60),\"\")","v":52},52,"2024-02-26","الاحتفاء بالمكرمين من ملتقى الشارقة الثقافي ضمن مبادرة \"ملتقى الشارقة للتكريم الثقافي","ندوات وأمسيات المجلس الأعلى للثقافة","أمانة المؤتمرات بالتعاون مع دائرة الشارقة للثقافة","11ص","11ص المجلس","رابط اليوتيوب","رابط الفيسبوك","https://fb.watch/qA1umnq14w/"]
[{"$f":"IF(C61>0,SUBTOTAL(3,$C$9:C61),\"\")","v":53},53,"2024-02-27","ندوة \"القوة الناعمة و تأثيرها في بنية المجتمع\"","ندوات وأمسيات المجلس الأعلى للثقافة","لجنة الفلسفة وعلم الاجتماع والانثربولوجيا","12ظ","12ظ قاعة المؤتمرات بكلية الآداب -جامعة عين شمس","رابط اليوتيوب","رابط الفيسبوك","https://fb.watch/qA2cVF66BE/"]
[{"$f":"IF(C62>0,SUBTOTAL(3,$C$9:C62),\"\")","v":54},54,"2024-02-27","الملتقى الأول للتراث الثقافي القنائي غير المادي بين الثبات والتغيير\n27-28 فبلاايلا","ندوات وأمسيات المجلس الأعلى للثقافة","لجنة التراث الثقافي غير المادي \"الفنون الشعبية\" بالتعاون مع وزارة التضامن الاجتماعي وبالتعاون مع جمعية تنمية المجتمع للمرأة الريفية والحضرية بقنا وبالتعاون مع المجلس القومي للمرأة","قصر","قصر ثقافة قنا",null,null,null,"مرأة"]
[{"$f":"IF(C63>0,SUBTOTAL(3,$C$9:C63),\"\")","v":55},55,"2024-02-27","\"مبادرة وعي بالقانون\" - الحلقة الخامسةالأستاذ/ بدر الطويل","سلسلة بعنوان مبادرة وعي بالقانون","لجنة ثقافة القانون والمواطنة وحقوق الإنسان","8م","8م أونلاين","رابط اليوتيوب","رابط الفيسبوك","https://fb.watch/qA5y2syVjb/","مبادرة  وعي"]
[{"$f":"IF(C64>0,SUBTOTAL(3,$C$9:C64),\"\")","v":56},56,"2024-02-28","ندوة \"الشباب وتعزيز الثقافة والهوية الوطنية.. معًا نحو توطين العدالة الثقافية\"","ندوات وأمسيات المجلس الأعلى للثقافة","لجنة الشباب بالتعاون مع مجلس الشباب المصري","4م","4م المؤتمرات","رابط اليوتيوب","رابط الفيسبوك","https://fb.watch/qA5LYGdLSE/","شباب"]
[{"$f":"IF(C65>0,SUBTOTAL(3,$C$9:C65),\"\")","v":57},57,"2024-02-28","مائدة مستديرة بعنوان \"مدونة المصطلحات الإعلامية بين السياسة والاقتصاد\"","ندوات وأمسيات المجلس الأعلى للثقافة","لجنة الإعلام بالتعاون مع لجنة الاقتصاد والعلوم السياسية","1ظ","1ظ الفنون","رابط اليوتيوب","رابط الفيسبوك","https://fb.watch/qJe-KAU25Q/"]
[{"$f":"IF(C66>0,SUBTOTAL(3,$C$9:C66),\"\")","v":58},58,"2024-02-29","أمسية مصر - بيلاروس .. علاقات ثقافية","ندوات وأمسيات المجلس الأعلى للثقافة","المجلس الأعلى للثقافة بالتعاون مع قطاع العلاقات الثقافية الخارجية وبالتعاون مع وزارة الخارجية (المعهد الدبلوماسي)","5م","5م المجلس","رابط اليوتيوب","رابط الفيسبوك","https://fb.watch/qA8QWeSc5D/"]
[{"$f":"IF(C67>0,SUBTOTAL(3,$C$9:C67),\"\")","v":59},59,"2024-03-03","ندوة \"ظاهرة العنف : الأسباب والعلاج\"","ندوات وأمسيات المجلس الأعلى للثقافة","لجنة التربية و علم النفس","12ظ","12ظ كلية التربية جامعة عين شمس - قاعة مجلس الكلية","رابط اليوتيوب","رابط الفيسبوك","https://fb.watch/qJe_PWsKW5/"]
[{"$f":"IF(C68>0,SUBTOTAL(3,$C$9:C68),\"\")","v":60},60,"2024-03-03","حلقة نقاشية بعنوان جهود الحكومة في مجال الإصلاح الإداري","ندوات وأمسيات المجلس الأعلى للثقافة","لجنة تطوير الإدارة الثقافية و تشريعاتها","5م","5م المجلس","رابط اليوتيوب","رابط الفيسبوك","https://fb.watch/qJf1HLnBWu/"]
[{"$f":"IF(C69>0,SUBTOTAL(3,$C$9:C69),\"\")","v":61},61,"2024-03-04","مؤتمر مصر ونهر النيل عبر العصور\n4-5  مارس2024","ندوات وأمسيات المجلس الأعلى للثقافة","لجنة التاريخ بالمجلس الأعلى للثقافة بالتعاون مع مركز البحوث والدراسات التاريخية وقسم التاريخ بكلية الآداب جامعة القاهرة","اليوم","اليوم الأول: كل قاعات المجلس الأعلى للثقافةاليوم الثاني: بمقر كلية الآداب جامعة القاهرة","رابط اليوتيوب","رابط الفيسبوك"]
[{"$f":"IF(C70>0,SUBTOTAL(3,$C$9:C70),\"\")","v":62},62,"2024-03-05","أمسية مصر - سلوفينيا.. علاقات ثقافية","ندوات وأمسيات المجلس الأعلى للثقافة","المجلس الأعلى للثقافة بالتعاون مع قطاع العلاقات الثقافية الخارجية وبالتعاون مع وزارة الخارجية ( النادي الدبلوماسي المصري)","5م","5م المجلس","رابط اليوتيوب","رابط الفيسبوك","https://fb.watch/qJeXJ9E9lC/"]
[{"$f":"IF(C71>0,SUBTOTAL(3,$C$9:C71),\"\")","v":63},63,"2024-03-06","ندوة \"الإدارة البيئية في المؤسسات الصحفية\"","ندوات وأمسيات المجلس الأعلى للثقافة","لجنة الجغرافيا والبيئة بالتعاون مع مؤسسة الأهرام",12,"12:30ظ مؤسسة الأهرام - قاعة هيكل","رابط اليوتيوب","رابط الفيسبوك","https://fb.watch/qJeZ-H2mee/","بيئة"]
[{"$f":"IF(C72>0,SUBTOTAL(3,$C$9:C72),\"\")","v":64},64,"2024-03-07","ندوة \"العلم في مواجهة التطرف والإرهاب\"","ندوات وأمسيات المجلس الأعلى للثقافة","لجنة مواجهة التطرف والإرهاب بالتعاون مع لجنة تنمية الثقافة العلمية والتفكير الابتكاري","5م","5م الندوات","رابط اليوتيوب","رابط الفيسبوك","https://fb.watch/qJeWSAsYtL/","إرهاب"]
[{"$f":"IF(C73>0,SUBTOTAL(3,$C$9:C73),\"\")","v":65},65,"2024-03-07","محاضرة بعنوان \"مفهوم الإبادة أصوله ونظرياته و أهميته المعاصرة\"","ندوات وأمسيات المجلس الأعلى للثقافة","لجنة التراث الثقافي غير المادي","6م","6م المجلس","رابط اليوتيوب","رابط الفيسبوك","https://fb.watch/qJeV0EZQ7G/"]
[{"$f":"IF(C74>0,SUBTOTAL(3,$C$9:C74),\"\")","v":66},{"$f":"ROW()-8","v":66},"2024-03-07","\"مبادرة وعي بالقانون\" - الحلقة السادسةالدكتور/ أحمد رفعت","سلسلة بعنوان مبادرة وعي بالقانون","لجنة ثقافة القانون والمواطنة وحقوق الإنسان","8م أونلاين","8م أونلاين","رابط اليوتيوب","رابط الفيسبوك","https://fb.watch/qJk6xBjKLF/","مبادرة"]
[{"$f":"IF(C75>0,SUBTOTAL(3,$C$9:C75),\"\")","v":67},67,"من 11/03/2024إلى 9/04/2024","مبادرة \"ماذا تعرف عن\"مبادرة رمضانية يومية:ماذا تعرف عن مساجد من مصر؟","مبادرة رمضانية يومية: ماذا تعرف عن مساجد من مصر؟","لجنة الفنون التشكيلية والعمارة","9م","9م كل يوم طول شهر رمضان أونلاين","رابط اليوتيوب","رابط الفيسبوك"]
[{"$f":"IF(C76>0,SUBTOTAL(3,$C$9:C76),\"\")","v":68},68,"2024-03-11","مبادرة \"ماذا تعرف عن\"مسجد عمرو بن العاص الحلقة الأولى","مبادرة رمضانية يومية: ماذا تعرف عن مساجد من مصر؟","لجنة الفنون التشكيلية والعمارة","9م","9م أونلاين","رابط اليوتيوب","رابط الفيسبوك"]
[{"$f":"IF(C77>0,SUBTOTAL(3,$C$9:C77),\"\")","v":69},69,"2024-03-12","\"مبادرة وعي بالقانون\" - الحلقة السابعة النائبة/ دينا عبد الكريم","سلسلة بعنوان مبادرة وعي بالقانون","لجنة ثقافة القانون والمواطنة وحقوق الإنسان","8م","8م أونلاين","رابط اليوتيوب","رابط الفيسبوك","https://fb.watch/r2pC7apT2I/","مبادرة عي"]
[{"$f":"IF(C78>0,SUBTOTAL(3,$C$9:C78),\"\")","v":70},70,"2024-03-12","مبادرة \"ماذا تعرف عن\"مسجد أحمد بن طولون الحلقة الثانية","مبادرة رمضانية يومية: ماذا تعرف عن مساجد من مصر؟","لجنة الفنون التشكيلية والعمارة","9م","9م أونلاين","رابط اليوتيوب","رابط الفيسبوك",null,"مبادرة رمضانية معرفة المساجد"]
[{"$f":"IF(C79>0,SUBTOTAL(3,$C$9:C79),\"\")","v":71},71,"2024-03-13","مبادرة \"ماذا تعرف عن\"الجامع الأزهرالحلقة الثالثة","مبادرة رمضانية يومية: ماذا تعرف عن مساجد من مصر؟","لجنة الفنون التشكيلية والعمارة","9م","9م أونلاين","رابط اليوتيوب","رابط الفيسبوك",null,"مبادرة رمضانية معرفة المساجد"]
[{"$f":"IF(C80>0,SUBTOTAL(3,$C$9:C80),\"\")","v":72},72,"2024-03-14","مبادرة \"ماذا تعرف عن\"مسجد الحاكم بأمر الله الحلقة الرابعة","مبادرة رمضانية يومية: ماذا تعرف عن مساجد من مصر؟","لجنة الفنون التشكيلية والعمارة","9م أونلاين","9م أونلاين","رابط اليوتيوب","رابط الفيسبوك",null,"مبادرة رمضانية معرفة المساجد"]
[{"$f":"IF(C81>0,SUBTOTAL(3,$C$9:C81),\"\")","v":73},73,"2024-03-15","مبادرة \"ماذا تعرف عن\"مسجد الأقمرالحلقة الخامسة","مبادرة رمضانية يومية: ماذا تعرف عن مساجد من مصر؟","لجنة الفنون التشكيلية والعمارة","9م أونلاين","9م أونلاين","رابط اليوتيوب","رابط الفيسبوك",null,"مبادرة رمضانية معرفة المساجد"]
[{"$f":"IF(C82>0,SUBTOTAL(3,$C$9:C82),\"\")","v":74},74,"2024-03-16","مبادرة \"ماذا تعرف عن\"مسجد الجيوشي الحلقة السادسة","مبادرة رمضانية يومية: ماذا تعرف عن مساجد من مصر؟","لجنة الفنون التشكيلية والعمارة","9م أونلاين","9م أونلاين","رابط اليوتيوب","رابط الفيسبوك",null,"مبادرة رمضانية معرفة المساجد"]
[{"$f":"IF(C83>0,SUBTOTAL(3,$C$9:C83),\"\")","v":75},75,"2024-03-17","مبادرة \"ماذا تعرف عن\"مسجد الصالح طلائع الحلقة السابعة","مبادرة رمضانية يومية: ماذا تعرف عن مساجد من مصر؟","لجنة الفنون التشكيلية والعمارة","9م أونلاين","9م أونلاين","رابط اليوتيوب","رابط الفيسبوك",null,"مبادرة رمضانية معرفة المساجد"]
[{"$f":"IF(C84>0,SUBTOTAL(3,$C$9:C84),\"\")","v":76},76,"2024-03-17","مائدة مستديرة \" الذكاء الاصطناعي وإرهاب الألفية الثالثة \"","ندوات وأمسيات المجلس الأعلى للثقافة","لجنة الثقافة الرقمية والبنية المعلوماتية الثقافية","9م","9م أونلاين","رابط اليوتيوب","رابط الفيسبوك",null,"الذكاء الاصطناعي"]
[{"$f":"IF(C85>0,SUBTOTAL(3,$C$9:C85),\"\")","v":77},77,"2024-03-18","احتفالية بمناسبة \"صدور المجلد السابع من موسوعة مصر والقضية الفلسطينية\"","ندوات وأمسيات المجلس الأعلى للثقافة","أمانة المؤتمرات","8م","8م المجلس","رابط اليوتيوب","رابط الفيسبوك"]
[{"$f":"IF(C86>0,SUBTOTAL(3,$C$9:C86),\"\")","v":78},78,"2024-03-18","ندوة: \"حوار ثقافي \"أونلاين","ندوات وأمسيات المجلس الأعلى للثقافة","لجنة السرد القصصي والروائي","9م","9م أونلاين","رابط اليوتيوب","رابط الفيسبوك",null,"حوار"]
[{"$f":"IF(C87>0,SUBTOTAL(3,$C$9:C87),\"\")","v":79},79,"2024-03-18","مبادرة \"ماذا تعرف عن\"مسجد الظاهر بيبرس الحلقة الثامنة","مبادرة رمضانية يومية: ماذا تعرف عن مساجد من مصر؟","لجنة الفنون التشكيلية والعمارة","9م","9م أونلاين","رابط اليوتيوب","رابط الفيسبوك",null,"مبادرة رمضانية معرفة المساجد"]
[{"$f":"IF(C88>0,SUBTOTAL(3,$C$9:C88),\"\")","v":80},80,"2024-03-19","\"مبادرة وعي بالقانون\" - الحلقة الثامنة دكتور/ عبد الله مغازي","سلسلة بعنوان مبادرة وعي بالقانون","لجنة ثقافة القانون والمواطنة وحقوق الإنسان","8م","8م أونلاين","رابط اليوتيوب","رابط الفيسبوك",null,"مبادرة وعي"]
[{"$f":"IF(C89>0,SUBTOTAL(3,$C$9:C89),\"\")","v":81},81,"2024-03-19","مبادرة \"ماذا تعرف عن\"مسجد أحمد المهمندار الحلقة التاسعة","مبادرة رمضانية يومية: ماذا تعرف عن مساجد من مصر؟","لجنة الفنون التشكيلية والعمارة","9مأونلاين","9م أونلاين","رابط اليوتيوب","رابط الفيسبوك",null,"مبادرة رمضانية معرفة المساجد"]
[{"$f":"IF(C90>0,SUBTOTAL(3,$C$9:C90),\"\")","v":82},82,"2024-03-20","حلقة نقاشية بعنوان: \" حرب رمضان / أكتوبر ١٩٧٣ في القانون الدولي\"","ندوات وأمسيات المجلس الأعلى للثقافة","لجنة ثقافة القانون والمواطنة وحقوق الإنسان","8م","8م المجلس","رابط اليوتيوب","رابط الفيسبوك",null,"أكتوبر"]
[{"$f":"IF(C91>0,SUBTOTAL(3,$C$9:C91),\"\")","v":83},83,"2024-03-20","مناقشة \"رواية أرواح من رميم\"من مشروعات إبداعات التفرغ للحاصلين على منح التفرغفي مجال الرواية ... بقلم / مروة آدم","ندوات وأمسيات المجلس الأعلى للثقافة","الإدارة المركزية للشئون الأدبية والمسابقات بالتعاون مع أمانة المؤتمرات","8م","8م الندوات","رابط اليوتيوب","رابط الفيسبوك",null,"مناقشة"]
[{"$f":"IF(C92>0,SUBTOTAL(3,$C$9:C92),\"\")","v":84},84,"2024-03-20","مبادرة \"ماذا تعرف عن\"مسجد الأمير الماس الحاجب الحلقة العاشرة","مبادرة رمضانية يومية: ماذا تعرف عن مساجد من مصر؟","لجنة الفنون التشكيلية والعمارة","9م أونلاين","9م أونلاين","رابط اليوتيوب","رابط الفيسبوك",null,"مبادرة رمضانية معرفة المساجد"]
[{"$f":"IF(C93>0,SUBTOTAL(3,$C$9:C93),\"\")","v":85},85,"2024-03-21","الورشة الفنية الأولى ورشة تصنيع فانوس رمضان ضمن برنامج \"أهلا رمضان\" للأطفال والشباب","ندوات وأمسيات المجلس الأعلى للثقافة","لجنة الفنون التشكيلية والعمارة بالتعاون مع كلية الفنون التطبيقية - جامعة حلوان","10ص","10ص كلية الفنون التطبيقية - جامعة حلوان",null,"رابط الفيسبوك",null,"طفل"]
[{"$f":"IF(C94>0,SUBTOTAL(3,$C$9:C94),\"\")","v":86},86,"2024-03-21","مبادرة \"ماذا تعرف عن\"مسجد الناصر محمد بن قلاوون الحلقة الحادية عشرة","مبادرة رمضانية يومية: ماذا تعرف عن مساجد من مصر؟","لجنة الفنون التشكيلية والعمارة","9م","9م أونلاين","رابط اليوتيوب","رابط الفيسبوك",null,"مبادرة رمضانية معرفة المساجد"]
[{"$f":"IF(C95>0,SUBTOTAL(3,$C$9:C95),\"\")","v":87},87,"2024-03-22","مبادرة \"ماذا تعرف عن\"مسجد آق سنقر (المسجد الأزرق)الحلقة الثانية عشرة","مبادرة رمضانية يومية: ماذا تعرف عن مساجد من مصر؟","لجنة الفنون التشكيلية والعمارة","9م أونلاين","9م أونلاين","رابط اليوتيوب","رابط الفيسبوك",null,"مبادرة رمضانية معرفة المساجد"]
[{"$f":"IF(C96>0,SUBTOTAL(3,$C$9:C96),\"\")","v":88},88,"2024-03-23","مبادرة \"ماذا تعرف عن\"مسجد طنبغا المارداني الحلقة الثالثة عشرة","مبادرة رمضانية يومية: ماذا تعرف عن مساجد من مصر؟","لجنة الفنون التشكيلية والعمارة","9م أونلاين","9م أونلاين","رابط اليوتيوب","رابط الفيسبوك",null,"مبادرة رمضانية معرفة المساجد"]
[{"$f":"IF(C97>0,SUBTOTAL(3,$C$9:C97),\"\")","v":89},89,"2024-03-24","ندوة \"المرأة والإعلام وتحديات العصر\"","ندوات وأمسيات المجلس الأعلى للثقافة","لجنة الشباب بالتعاون مع لجنة الإعلام","8م","8م المجلس","رابط اليوتيوب","رابط الفيسبوك",null,"مرأة"]
[{"$f":"IF(C98>0,SUBTOTAL(3,$C$9:C98),\"\")","v":90},90,"2024-03-24","مناقشة ديوان \"دفتر العقل\"من مشروعات إبداعات التفرغ للحاصلين على منح التفرغ في مجال الشعر ... للشاعر / أحمد فضل شبلول","ندوات وأمسيات المجلس الأعلى للثقافة","الإدارة المركزية للشئون الأدبية والمسابقات بالتعاون مع أمانة المؤتمرات","9م","9م الندوات","رابط اليوتيوب","رابط الفيسبوك"]
[{"$f":"IF(C99>0,SUBTOTAL(3,$C$9:C99),\"\")","v":91},91,"2024-03-24","مبادرة \"ماذا تعرف عن\"مسجد الأمير شيخو الحلقة الرابعة عشرة","مبادرة رمضانية يومية: ماذا تعرف عن مساجد من مصر؟","لجنة الفنون التشكيلية والعمارة","9م أونلاين","9م أونلاين","رابط اليوتيوب","رابط الفيسبوك",null,"مبادرة رمضانية معرفة المساجد"]
[{"$f":"IF(C100>0,SUBTOTAL(3,$C$9:C100),\"\")","v":92},92,"2024-03-25","ندوة \"مهارات المترجم الجديد\"","ندوات وأمسيات المجلس الأعلى للثقافة","لجنة الترجمة","7م جامعة","7م جامعة بدر","رابط اليوتيوب","رابط الفيسبوك"]
[{"$f":"IF(C101>0,SUBTOTAL(3,$C$9:C101),\"\")","v":93},93,"2024-03-25","مائدة مستديرة بعنوان \" الألعاب الإلكترونية وتأثيراتها الثقافية صناعة أم ترفيه \"","ندوات وأمسيات المجلس الأعلى للثقافة","لجنة الثقافة الرقمية والبنية المعلوماتية بالتعاون مع بعض لجان المجلس","9م","9م أونلاين","رابط اليوتيوب","رابط الفيسبوك"]
[{"$f":"IF(C102>0,SUBTOTAL(3,$C$9:C102),\"\")","v":94},94,"2024-03-25","مبادرة \"ماذا تعرف عن\"مسجد جمال الدين يوسف الاستادار الحلقة الخامسة عشرة","مبادرة رمضانية يومية: ماذا تعرف عن مساجد من مصر؟","لجنة الفنون التشكيلية والعمارة","9م","9م أونلاين","رابط اليوتيوب","رابط الفيسبوك",null,"مبادرة رمضانية معرفة المساجد"]
[{"$f":"IF(C103>0,SUBTOTAL(3,$C$9:C103),\"\")","v":95},95,"2024-03-26","\"مبادرة وعي بالقانون\" - الحلقة التاسعةالدكتورة/ نهى بكر","سلسلة بعنوان مبادرة وعي بالقانون","لجنة ثقافة القانون والمواطنة وحقوق الإنسان","7م","7م أونلاين","رابط اليوتيوب","رابط الفيسبوك",null,"مبادرة وعي"]
[{"$f":"IF(C104>0,SUBTOTAL(3,$C$9:C104),\"\")","v":96},96,"2024-03-26","مبادرة \"ماذا تعرف عن\"مسجد السلطان المؤيد شيخ الحلقة السادسة عشرة","مبادرة رمضانية يومية: ماذا تعرف عن مساجد من مصر؟","لجنة الفنون التشكيلية والعمارة","9م","9م أونلاين","رابط اليوتيوب","رابط الفيسبوك",null,"مبادرة رمضانية معرفة المساجد"]
[{"$f":"IF(C105>0,SUBTOTAL(3,$C$9:C105),\"\")","v":97},97,"2024-03-27","مبادرة \"ماذا تعرف عن\"مسجد قجماس الإسحاقي الحلقة السابعة عشرة","مبادرة رمضانية يومية: ماذا تعرف عن مساجد من مصر؟","لجنة الفنون التشكيلية والعمارة","9م","9م أونلاين","رابط اليوتيوب","رابط الفيسبوك",null,"مبادرة رمضانية معرفة المساجد"]
[{"$f":"IF(C106>0,SUBTOTAL(3,$C$9:C106),\"\")","v":98},98,"2024-03-27","ندوة \"رمضان في الأدب العربي\"","ندوات وأمسيات المجلس الأعلى للثقافة","لجنة الدراسات الأدبية والنقدية واللغوية","9مأونلاين","9مأونلاين","رابط اليوتيوب","رابط الفيسبوك"]
[{"$f":"IF(C107>0,SUBTOTAL(3,$C$9:C107),\"\")","v":99},99,"2024-03-28","الورشة الفنية الثانية ورشة تصنيع زينة رمضان ضمن برنامج \"أهلا رمضان\" للأطفال والشباب","ندوات وأمسيات المجلس الأعلى للثقافة","لجنة الفنون التشكيلية والعمارة بالتعاون مع كلية الفنون التطبيقية - جامعة حلوان","10صكلية","10صكلية الفنون التطبيقية - جامعة حلوان",null,"رابط الفيسبوك",null,"\nطفل\nشباب"]
[{"$f":"IF(C108>0,SUBTOTAL(3,$C$9:C108),\"\")","v":100},100,"2024-03-28","مبادرة \"ماذا تعرف عن\"مسجد سارية الجبل الحلقة الثامنة عشرة","مبادرة رمضانية يومية: ماذا تعرف عن مساجد من مصر؟","لجنة الفنون التشكيلية والعمارة","9مأونلاين","9مأونلاين","رابط اليوتيوب","رابط الفيسبوك",null,"مبادرة رمضانية معرفة المساجد"]
[{"$f":"IF(C109>0,SUBTOTAL(3,$C$9:C109),\"\")","v":101},101,"2024-03-29","مبادرة \"ماذا تعرف عن\"مسجد قاني باي الرماح الحلقة التاسعة عشرة","مبادرة رمضانية يومية: ماذا تعرف عن مساجد من مصر؟","لجنة الفنون التشكيلية والعمارة","9م","9م أونلاين","رابط اليوتيوب","رابط الفيسبوك",null,"مبادرة رمضانية معرفة المساجد"]
[{"$f":"IF(C110>0,SUBTOTAL(3,$C$9:C110),\"\")","v":102},102,"2024-03-30","مبادرة \"ماذا تعرف عن\"مسجد المحموديةالحلقة العشرون","مبادرة رمضانية يومية: ماذا تعرف عن مساجد من مصر؟","لجنة الفنون التشكيلية والعمارة","9م","9م أونلاين","رابط اليوتيوب","رابط الفيسبوك",null,"مبادرة رمضانية معرفة المساجد"]
[{"$f":"IF(C111>0,SUBTOTAL(3,$C$9:C111),\"\")","v":103},103,"2024-03-31","حلقة نقاشية بعنوان \"مدارس أداء السيرة الهلالية\"","ندوات وأمسيات المجلس الأعلى للثقافة","لجنة التراث الثقافي غير المادي \"الفنون الشعبية\" بالتعاون مع الهيئة العامة لقصور الثقافة","8م","8م الندوات","رابط اليوتيوب","رابط الفيسبوك"]
[{"$f":"IF(C112>0,SUBTOTAL(3,$C$9:C112),\"\")","v":104},104,"2024-03-31","مبادرة \"ماذا تعرف عن\"مسجد سنان باشاالحلقة الحادي والعشرين","مبادرة رمضانية يومية: ماذا تعرف عن مساجد من مصر؟","لجنة الفنون التشكيلية والعمارة","9م أونلاين","9م أونلاين","رابط اليوتيوب","رابط الفيسبوك",null,"مبادرة رمضانية معرفة المساجد"]
[{"$f":"IF(C113>0,SUBTOTAL(3,$C$9:C113),\"\")","v":105},105,"2024-03-31","مقتطفات شعرية في المديح النبوي يقدمها: الشاعر الدكتور/ أحمد يوسف ويلقي مختارات من قصيدة \"ولد الهدى\" لأمير الشعراء/ أحمد شوقي الحلقة 1","مبادرة في حب الحبيب","لجنة الشعر","10م","10م أونلاين","رابط اليوتيوب","رابط الفيسبوك"]
[{"$f":"IF(C114>0,SUBTOTAL(3,$C$9:C114),\"\")","v":106},106,"2024-04-01","مقتطفات شعرية في المديح النبويي قدمها: الشاعر / عبد الستار سليم ويلقي مختارات من همزية الإمام البوصيري الحلقة 2","مبادرة في حب الحبيب","لجنة الشعر","10م","10م أونلاين","رابط اليوتيوب","رابط الفيسبوك"]
[{"$f":"IF(C115>0,SUBTOTAL(3,$C$9:C115),\"\")","v":107},107,"2024-04-01","مبادرة \"ماذا تعرف عن\"مسجد الملكة صفيةالحلقة الثانية والعشرين","مبادرة رمضانية يومية: ماذا تعرف عن مساجد من مصر؟","لجنة الفنون التشكيلية والعمارة","9م","9م أونلاين","رابط اليوتيوب","رابط الفيسبوك",null,"مبادرة رمضانية معرفة المساجد"]
[{"$f":"IF(C116>0,SUBTOTAL(3,$C$9:C116),\"\")","v":108},108,"2024-04-02","\"مبادرة وعي بالقانون\" - الحلقة العاشرة المستشار/ عصام شيحة","سلسلة بعنوان مبادرة وعي بالقانون","لجنة ثقافة القانون والمواطنة وحقوق الإنسان","7م","7م أونلاين","رابط اليوتيوب","رابط الفيسبوك",null,"مبادرة وعي"]
[{"$f":"IF(C117>0,SUBTOTAL(3,$C$9:C117),\"\")","v":109},109,"2024-04-02","مبادرة \"ماذا تعرف عن\"مسجد السلحدار الحلقة الثالثة والعشرين","مبادرة رمضانية يومية: ماذا تعرف عن مساجد من مصر؟","لجنة الفنون التشكيلية والعمارة","9م","9م أونلاين","رابط اليوتيوب","رابط الفيسبوك",null,"مبادرة رمضانية معرفة المساجد"]
[{"$f":"IF(C118>0,SUBTOTAL(3,$C$9:C118),\"\")","v":110},110,"2024-04-02","مقتطفات شعرية في المديح النبوي تقدمها: الشاعرة الدكتورة / شيرين العدوي و تلقي قصيدة \"خمر المجذوب\"الحلقة 3","مبادرة في حب الحبيب","لجنة الشعر","10م","10م أونلاين","رابط اليوتيوب","رابط الفيسبوك"]
[{"$f":"IF(C119>0,SUBTOTAL(3,$C$9:C119),\"\")","v":111},111,"2024-04-03","مبادرة \"ماذا تعرف عن\"مسجد محمد بك أبو الذهب الحلقة الرابعة والعشرين","مبادرة رمضانية يومية: ماذا تعرف عن مساجد من مصر؟","لجنة الفنون التشكيلية والعمارة","9م","9م أونلاين","رابط اليوتيوب","رابط الفيسبوك",null,"مبادرة رمضانية معرفة المساجد"]
[{"$f":"IF(C120>0,SUBTOTAL(3,$C$9:C120),\"\")","v":112},112,"2024-04-03","ندوة \"الدراما الرمضانية\"","ندوات وأمسيات المجلس الأعلى للثقافة","لجنة الدراسات الأدبية والنقدية واللغوية","9م","9م المجلس","رابط اليوتيوب","رابط الفيسبوك"]
[{"$f":"IF(C121>0,SUBTOTAL(3,$C$9:C121),\"\")","v":113},113,"2024-04-03","مقتطفات شعرية في المديح النبوي يقدمها: الشاعر الدكتور / علاء جانب ويلقي قصيدة \"شجون رمضانية\"الحلقة 4","مبادرة في حب الحبيب","لجنة الشعر","10م","10م أونلاين","رابط اليوتيوب","رابط الفيسبوك"]
[{"$f":"IF(C122>0,SUBTOTAL(3,$C$9:C122),\"\")","v":114},114,"2024-04-04","ندوة \"مرآة ثقافية لتاريخ وطن - شهادات ودراسات\"مناقشة العدد 400 من مجلة الثقافة الجديدةإحتفالية بمناسبة صدور العدد 400 من مجلة الثقافة الجديدة","ندوات وأمسيات المجلس الأعلى للثقافة","أمانة المؤاتمرت","5م","5م المجلس","رابط اليوتيوب","رابط الفيسبوك",null,"مناقشة"]
[{"$f":"IF(C123>0,SUBTOTAL(3,$C$9:C123),\"\")","v":115},115,"2024-04-04","الورشة الفنية الثالثةورشة التصوير الفوتوغرافي للمساجد والعمارة الإسلاميةضمن برنامج \"أهلا رمضان\" للأطفال والشباب","ندوات وأمسيات المجلس الأعلى للثقافة","لجنة الفنون التشكيلية والعمارة بالتعاون مع كلية الفنون التطبيقية - جامعة حلوان","10صبشار","10صبشار ع المعز لدين الله الفاطمي",null,"رابط الفيسبوك"]
[{"$f":"IF(C124>0,SUBTOTAL(3,$C$9:C124),\"\")","v":116},116,"2024-04-04","الورشة الفنية الرابعةورشة الخط العربيضمن برنامج \"أهلا رمضان\" للأطفال والشباب","ندوات وأمسيات المجلس الأعلى للثقافة","لجنة الفنون التشكيلية والعمارة بالتعاون مع كلية الفنون التطبيقية - جامعة حلوان","10صكلية","10صكلية الفنون التطبيقية - جامعة حلوان",null,"رابط الفيسبوك",null,"طفل"]
[{"$f":"IF(C125>0,SUBTOTAL(3,$C$9:C125),\"\")","v":117},117,"2024-04-04","مبادرة \"ماذا تعرف عن\"مسجد محمد عليالحلقة الخامسة والعشرين","مبادرة رمضانية يومية: ماذا تعرف عن مساجد من مصر؟","لجنة الفنون التشكيلية والعمارة","9م","9م أونلاين","رابط اليوتيوب","رابط الفيسبوك",null,"مبادرة رمضانية معرفة المساجد"]
[{"$f":"IF(C126>0,SUBTOTAL(3,$C$9:C126),\"\")","v":118},118,"2024-04-04","ندوة  \"الشباب والتطرف: آليات المواجهة في عصر الذكاء الإصطناعي\"","ندوات وأمسيات المجلس الأعلى للثقافة","لجنة مواجهة التطرف والإرهاب بالتعاون مع لجنة الشباب وبالتعاون مع لجنة الثقافة الرقمية والبنية المعلوماتية الثقافية","9م","9م المجلس","رابط اليوتيوب","رابط الفيسبوك"]
[{"$f":"IF(C127>0,SUBTOTAL(3,$C$9:C127),\"\")","v":119},119,"2024-04-04","مقتطفات شعرية في المديح النبوي يقدمها: الشاعر / إيهاب البشبيشي ويلقي مختارات من قصيدة \"نهج البردة\" للإمام البوصيري الحلقة 5","مبادرة في حب الحبيب","لجنة الشعر","10م","10م أونلاين","رابط اليوتيوب","رابط الفيسبوك"]
[{"$f":"IF(C128>0,SUBTOTAL(3,$C$9:C128),\"\")","v":120},120,"2024-04-05","مبادرة \"ماذا تعرف عن\"مسجد الحسينالحلقة السادسة والعشرين","مبادرة رمضانية يومية: ماذا تعرف عن مساجد من مصر؟","لجنة الفنون التشكيلية والعمارة","9م","9م أونلاين","رابط اليوتيوب","رابط الفيسبوك",null,"مبادرة رمضانية معرفة المساجد"]
[{"$f":"IF(C129>0,SUBTOTAL(3,$C$9:C129),\"\")","v":121},121,"2024-04-05","مقتطفات شعرية في المديح النبوي يقدمها: الشاعر / عبد الستار سليم ويلقي قصيدة من فن الواوالحلقة 6","مبادرة في حب الحبيب","لجنة الشعر","10 مأونلاين","10م أونلاين","رابط اليوتيوب","رابط الفيسبوك"]
[{"$f":"IF(C130>0,SUBTOTAL(3,$C$9:C130),\"\")","v":122},122,"2024-04-06","مبادرة \"ماذا تعرف عن\"مسجد السيدة نفيسةالحلقة السابعة والعشرين","مبادرة رمضانية يومية: ماذا تعرف عن مساجد من مصر؟","لجنة الفنون التشكيلية والعمارة","9م أونلاين","9م أونلاين","رابط اليوتيوب","رابط الفيسبوك"]
[{"$f":"IF(C131>0,SUBTOTAL(3,$C$9:C131),\"\")","v":123},123,"2024-04-06","مقتطفات شعرية في المديح النبوي تقدمها: الشاعرة الدكتورة / شيرين العدوي وتلقي مختارات من قصيدة \"نهج البردة\" لاحمد شوقيالحلقة 7","مبادرة في حب الحبيب","لجنة الشعر","10 مأونلاين","10م أونلاين","رابط اليوتيوب","رابط الفيسبوك"]
[{"$f":"IF(C132>0,SUBTOTAL(3,$C$9:C132),\"\")","v":124},124,"2024-04-07","مبادرة \"ماذا تعرف عن\"مسجد السيدة زينب الحلقة الثامنة والعشرين","مبادرة رمضانية يومية: ماذا تعرف عن مساجد من مصر؟","لجنة الفنون التشكيلية والعمارة","9م","9م أونلاين","رابط اليوتيوب","رابط الفيسبوك",null,"مبادرة رمضانية معرفة المساجد"]
[{"$f":"IF(C133>0,SUBTOTAL(3,$C$9:C133),\"\")","v":125},125,"2024-04-08","المعرض الفني من مخرجات الورش الفنية","ندوات وأمسيات المجلس الأعلى للثقافة","لجنة الفنون التشكيلية والعمارة بالتعاون مع كلية الفنون التطبيقية - جامعة حلوان","بهو","بهو المجلس الأعلى للثقافة","رابط اليوتيوب","رابط الفيسبوك"]
[{"$f":"IF(C134>0,SUBTOTAL(3,$C$9:C134),\"\")","v":126},126,"2024-04-08","مبادرة \"ماذا تعرف عن\"مسجد الرفاعي الحلقة التاسعة والعشرين","مبادرة رمضانية يومية: ماذا تعرف عن مساجد من مصر؟","لجنة الفنون التشكيلية والعمارة","9م","9م أونلاين","رابط اليوتيوب","رابط الفيسبوك",null,"مبادرة رمضانية معرفة المساجد"]
[{"$f":"IF(C135>0,SUBTOTAL(3,$C$9:C135),\"\")","v":127},127,"2024-04-09","مبادرة \"ماذا تعرف عن\"مسجد الفتح الحلقة الثلاثون","مبادرة رمضانية يومية: ماذا تعرف عن مساجد من مصر؟","لجنة الفنون التشكيلية والعمارة","9م","9م أونلاين","رابط اليوتيوب","رابط الفيسبوك",null,"مبادرة رمضانية معرفة المساجد"]
[{"$f":"IF(C136>0,SUBTOTAL(3,$C$9:C136),\"\")","v":128},128,"2024-04-15","ندوة \"سمات الشخصية المصرية في العصرين البطلمى والرومانى\"","ندوات وأمسيات المجلس الأعلى للثقافة","لجنة التاريخ والآثار",10,"10 ص","رابط اليوتيوب","رابط الفيسبوك","https://fb.watch/rL2Ub9p6fd/"]
[{"$f":"IF(C137>0,SUBTOTAL(3,$C$9:C137),\"\")","v":129},129,"2024-04-15","ندوة: \"حوار ثقافي","ندوات وأمسيات المجلس الأعلى للثقافة","لجنة السرد القصصي والروائي",12,"12 م أونلاين","رابط اليوتيوب","رابط الفيسبوك","https://fb.watch/rL2YeIpHHo/"]
[{"$f":"IF(C138>0,SUBTOTAL(3,$C$9:C138),\"\")","v":130},{"$f":"ROW()-8","v":130},"2024-04-16","ندوة دور المؤسسات التعليمية في تنمية ثقافة القانون و المواطنةوحقوق الإنسان","ندوات وأمسيات المجلس الأعلى للثقافة","لجنة ثقافة القانون والمواطنة وحقوق الإنسان",3,"3 م",null,null,"----------------------------------"]
[{"$f":"IF(C139>0,SUBTOTAL(3,$C$9:C139),\"\")","v":131},131,"2024-04-17","ندوة \" تغير المناخ.. إلى أين\"","ندوات وأمسيات المجلس الأعلى للثقافة","لجنة الجغرافيا والبيئة",5,"5 م","رابط اليوتيوب","رابط الفيسبوك","https://fb.watch/rL4Df_KFdk/"]
[{"$f":"IF(C140>0,SUBTOTAL(3,$C$9:C140),\"\")","v":132},132,"2024-04-17","\"فلسطين في المسرح المصري\" - مائدة مستديرة","ندوات وأمسيات المجلس الأعلى للثقافة","لجنة المسرح",5,"5 م","رابط اليوتيوب","رابط الفيسبوك","https://fb.watch/rL4GqQduER/"]
[{"$f":"IF(C141>0,SUBTOTAL(3,$C$9:C141),\"\")","v":133},133,"2024-04-17","أمسية ثقافية \"تواصل\"","ندوات وأمسيات المجلس الأعلى للثقافة","لجنة السرد القصصي والروائي","5م ","5م","رابط اليوتيوب","رابط الفيسبوك","https://fb.watch/rL4EVFBWfE/"]
[{"$f":"IF(C142>0,SUBTOTAL(3,$C$9:C142),\"\")","v":134},134,"2024-04-18","عرض فني \"بأم عيني \"للحكواتي الفلسطيني غنام غنام","ندوات وأمسيات المجلس الأعلى للثقافة","لجنة المسرح",8,"8 م","رابط اليوتيوب","رابط الفيسبوك","https://fb.watch/rL4Odt5_j1/"]
[{"$f":"IF(C143>0,SUBTOTAL(3,$C$9:C143),\"\")","v":135},135,"2024-04-19","ندوة \"الكتاب بين عصري جوتنبرج و زوكربيرج\"","ندوات وأمسيات المجلس الأعلى للثقافة","لجنة الثقافة الرقمية والبنية المعلوماتية الثقافية",5,"5.5 م","رابط اليوتيوب","رابط الفيسبوك","https://fb.watch/rL4RkrHRNu/"]
[{"$f":"IF(C144>0,SUBTOTAL(3,$C$9:C144),\"\")","v":136},136,"2024-04-21","حلقة نقاشية \"المؤسسات ذات الصلة بالثقافة الشعبية المصرية.. الأدوار، الطموحات والمعوقات","ندوات وأمسيات المجلس الأعلى للثقافة","لجنة التراث الثقافي غير المادي \"الفنون الشعبية\"",11,"11 ص","رابط اليوتيوب","رابط الفيسبوك","https://fb.watch/rL6q_-vTcI/"]
[{"$f":"IF(C145>0,SUBTOTAL(3,$C$9:C145),\"\")","v":137},137,"2024-04-21","ندوة: الثورة التكنولوجية ودور المرأة المصرية في تحقيق التنمية المستدامة","ندوات وأمسيات المجلس الأعلى للثقافة","لجنة الثقافة الرقمية والبنية المعلوماتية",10,"10.5ص","رابط اليوتيوب","رابط الفيسبوك","https://fb.watch/rL55Lsr0h0/","مرأة"]
[{"$f":"IF(C146>0,SUBTOTAL(3,$C$9:C146),\"\")","v":138},138,"2024-04-22","ندوة سعد مكاوى قاصًا وروائيًا وقراءات قصصية","ندوات وأمسيات المجلس الأعلى للثقافة","لجنة السرد القصصي والروائي",1,"1 ض","رابط اليوتيوب","رابط الفيسبوك","https://fb.watch/rL6n074z39/"]
[{"$f":"IF(C147>0,SUBTOTAL(3,$C$9:C147),\"\")","v":139},139,"2024-04-23","أمسية \"مصر .. التشيك \"","ندوات وأمسيات المجلس الأعلى للثقافة","أمانة المؤتمرات - العلاقات الثقافية الخارجية",6,"6 م"]
[{"$f":"IF(C148>0,SUBTOTAL(3,$C$9:C148),\"\")","v":140},140,"2024-04-23","جائزة الشارقة للإبداع العربي الدورة السابعه والعشرين اليوم الأول والافتتاح","ندوات وأمسيات المجلس الأعلى للثقافة","أمانة المؤتمرات",10,"10 ص مسرح الهناجر","رابط اليوتيوب","رابط الفيسبوك","https://fb.watch/rL6oyM_bjV/"]
[{"$f":"IF(C149>0,SUBTOTAL(3,$C$9:C149),\"\")","v":141},141,"2024-04-23","مبادرة وعي بالقانون - الحلقة الحادية عشرةنيافة الأنبا أرميا","سلسلة بعنوان مبادرة وعي بالقانون","لجنة ثقافة القانون والمواطنة وحقوق الإنسان",8,"8 م","رابط اليوتيوب","رابط الفيسبوك","https://fb.watch/rL6YpCAxjE/"]
[{"$f":"IF(C150>0,SUBTOTAL(3,$C$9:C150),\"\")","v":142},142,"2024-04-24","مائدة مستديرة\"تجارب التنمية في آسيا\"","ندوات وأمسيات المجلس الأعلى للثقافة","لجنة الإقتصاد والعلوم السياسية",6,"6 م الفنون","رابط اليوتيوب","رابط الفيسبوك","https://www.youtube.com/watch?v=hIm3JA2ZIxE"]
[{"$f":"IF(C151>0,SUBTOTAL(3,$C$9:C151),\"\")","v":143},143,"2024-04-24","جائزة الشارقة للإبداع العربي الدورة السابعه والعشرين اليوم الثاني",null,"أمانة المؤتمرات","10ص","10ص المجلس","رابط اليوتيوب","رابط الفيسبوك","https://fb.watch/rL6oyM_bjV/"]
[{"$f":"IF(C152>0,SUBTOTAL(3,$C$9:C152),\"\")","v":144},144,"2024-04-24","تسجيلات نادرة للفقرات الغنائية لمسرحية \"الهلال\" ألحان سيئد درويش\"احنا الجنود\" اللحن الأول من مسرحية الهلال-\"هنونى يا خونا\" اللحن الثاني\"حرام عليك والله يا قلبى\" اللحن الثالث\"يا هل ترى ايه الخبر\" اللحن الرابع\"لحن التمرجية\" اللحن الخامس \"فين يا ناس أهل الشهامة\" اللحن السادس\"تعالوا يا جماعة\" اللحن السابع\"برافو برافو علينا\" اللحن الثامن\"الحقوا النار فى المغارة\" اللحن التاسع لحن الختام \"اهتفوا باسم العدالة\" اللحن العاشر",null,"لجنة جمع وتوثيق التراث الموسيقي المشكلة بالمجلس الأعلى للثقافة",null,null,"رابط اليوتيوب","رابط الفيسبوك الفصل الثالث من \"مسرحية كليوباترا\"\n\nرابط الفيسبوك - الفصل الثاني من \"مسرحية كليوباترا\"\n\n\nرابط الفيسبوك - الفصل الأول من \"مسرحية كليوباترا\""]
[{"$f":"IF(C153>0,SUBTOTAL(3,$C$9:C153),\"\")","v":145},145,"2024-04-25","ندوة: \"سيناء  مهد الأديان والحضارات وأرض التضحيات\"","ندوات وأمسيات المجلس الأعلى للثقافة","لجان المجلس - أمانة المؤتمرات",6,"6 م أون لاين","رابط اليوتيوب","رابط الفيسبوك","https://fb.watch/rNBKcNPmZU/"]
[{"$f":"IF(C154>0,SUBTOTAL(3,$C$9:C154),\"\")","v":146},146,"2024-04-28","ندوة:\" دور الملكية الفكرية في تحقيق أهداف التنمية المستدامة\"","ندوات وأمسيات المجلس الأعلى للثقافة","لجنة حماية الملكية الفكرية",9,"9 ص جامعة القاهرة","رابط اليوتيوب","رابط الفيسبوك"]
[{"$f":"IF(C155>0,SUBTOTAL(3,$C$9:C155),\"\")","v":147},147,"2024-04-28","حلقة نقاشية بعنوان \"تمويل العمل الثقافي بين الفرص و التحديات\"","ندوات وأمسيات المجلس الأعلى للثقافة","لجنة تطوير الإدارة الثقافية و تشريعاتها","5م","5م الفنون","رابط اليوتيوب","رابط الفيسبوك"]
[{"$f":"IF(C156>0,SUBTOTAL(3,$C$9:C156),\"\")","v":148},148,"2024-04-28","أمسية شعرية نقدية بمناسبة اليوم العالمي للشعر","ندوات وأمسيات المجلس الأعلى للثقافة","لجنة الشعر","6م","6م المؤتمرات","رابط اليوتيوب","رابط الفيسبوك"]
[{"$f":"IF(C157>0,SUBTOTAL(3,$C$9:C157),\"\")","v":149},149,"2024-04-29","مائدة مستديرة بعنوان الشباب والتراث في عصر العولمة","ندوات وأمسيات المجلس الأعلى للثقافة","لجنة الشباب بالتعاون مع لجنة التراث الثقافي غير المادي","5م","5م المجلس","رابط اليوتيوب","رابط الفيسبوك","https://fb.watch/rMl2sO0G2D/","شباب"]
[{"$f":"IF(C158>0,SUBTOTAL(3,$C$9:C158),\"\")","v":150},150,"2024-04-29","تحديات طباعة الكتاب في مصر - مائدة مستديرة","ندوات وأمسيات المجلس الأعلى للثقافة","لجنة الكتاب والنشر","5م","5م الفنون","رابط اليوتيوب","رابط الفيسبوك","https://fb.watch/rNE1PWycm_/"]
[{"$f":"IF(C159>0,SUBTOTAL(3,$C$9:C159),\"\")","v":151},151,"2024-04-30","ندوة بعنوان: \" متى وكيف يشعر المواطن المصرى بجودة الحياه \"","ندوات وأمسيات المجلس الأعلى للثقافة","لجنة الفلسفة وعلم الاجتماع والإنثربولوجيا","12 ظالمؤتمرات","12ظالمؤتمرات","رابط اليوتيوب","رابط الفيسبوك"]
[{"$f":"IF(C160>0,SUBTOTAL(3,$C$9:C160),\"\")","v":152},152,"2024-04-30","ندوة \"الملكية الفكرية وصناعة النشر\"","ندوات وأمسيات المجلس الأعلى للثقافة","لجنة الكتاب والنشر","6م","6م المجلس","رابط اليوتيوب","رابط الفيسبوك","https://fb.watch/rNE3u3h1xT/ "]
[{"$f":"IF(C161>0,SUBTOTAL(3,$C$9:C161),\"\")","v":153},153,"2024-04-30","مبادرة وعي بالقانون  الحلقة الثانية عشرالدكتور حسن عبد الحميد","سلسلة بعنوان مبادرة وعي بالقانون","لجنة ثقافة القانون والمواطنة وحقوق الإنسان","8م أونلاين","8مأونلاين","رابط اليوتيوب","رابط الفيسبوك","\nhttps://fb.watch/rYrJgv76KJ/","مبادرة وعى بالقانون"]
[{"$f":"IF(C162>0,SUBTOTAL(3,$C$9:C162),\"\")","v":154},154,"2024-05-03","مجلة ثقافة قانونية - العدد الثاني مجلة فصلية","مجلة ثقافة قانونية - العدد الثاني","   لجنة ثقافة القانون والمواطنة وحقوق الإنسان",null,"أونلاين",null,"رابط الفيسبوك"]
[{"$f":"IF(C163>0,SUBTOTAL(3,$C$9:C163),\"\")","v":155},155,"2024-05-07","سلسلة ثقافة تك - د. فتحي عامر - الذكاء الاصطناعي وحماية البيانات الشخصية - الحلقة 49","سلسة ثقافة تك","لجنة الثقافة الرقمية والبنية المعلوماتية","7م أونلاين","7م أونلاين","رابط اليوتيوب","رابط الفيسبوك",null,"سلسلة ثقافة تك"]
[{"$f":"IF(C164>0,SUBTOTAL(3,$C$9:C164),\"\")","v":156},156,"2024-05-07","مباردر وعي بالقانون - د. عمرو الورداني - - الحلقة 13","مبادرة وعي بالقانون","لجنة ثقافة القانون والمواطنة وحقوق الإنسان","8م أونلاين","8م أونلاين","رابط اليوتيوب","رابط الفيسبوك"]
[{"$f":"IF(C165>0,SUBTOTAL(3,$C$9:C165),\"\")","v":157},157,"2024-05-08","الشباب والإعلام مائدة مستديرة","ندوات وأمسيات المجلس الأعلى للثقافة","لجنة الشباب ولجنة الإعلام","6م","6م المجلس","رابط اليوتيوب","رابط الفيسبوك","\nhttps://fb.watch/s9tKEpJ5vs/","شباب"]
[{"$f":"IF(C166>0,SUBTOTAL(3,$C$9:C166),\"\")","v":158},158,"2024-05-09","ندوة المواطنة ونبذ ثقافة الكراهية","ندوات وأمسيات المجلس الأعلى للثقافة","لجنة مواجهة التطرف والإرهاب ولجنة ثقافة القانون ولمواطنة وحقوق الإنسان","5م","5م المجلس","رابط اليوتيوب","رابط الفيسبوك"]
[{"$f":"IF(C167>0,SUBTOTAL(3,$C$9:C167),\"\")","v":159},159,"2024-05-09","ندوة اللغة وأدب الأطفال.. الهوية والإبداع","ندوات وأمسيات المجلس الأعلى للثقافة","لجنة فنون الطفل","5م","5م الفنون","رابط اليوتيوب","رابط الفيسبوك",null,"طفل"]
[{"$f":"IF(C168>0,SUBTOTAL(3,$C$9:C168),\"\")","v":160},160,"2024-05-12","أمسية ثقافية\"الشباب والإبداع وصناعة الوعي\"","ندوات وأمسيات المجلس الأعلى للثقافة","لجنة الشباب","5ممسرح","5م مسرح السامر بالعجوزة","رابط اليوتيوب","رابط الفيسبوك",null,"شباب"]
[{"$f":"IF(C169>0,SUBTOTAL(3,$C$9:C169),\"\")","v":161},161,"2024-05-12","ندوة \" الإعلام والإعلان وحقوق المشاهد","ندوات وأمسيات المجلس الأعلى للثقافة","لجنة الإعلام","7م","7م المجلس","رابط اليوتيوب","رابط الفيسبوك"]
[{"$f":"IF(C170>0,SUBTOTAL(3,$C$9:C170),\"\")","v":162},162,"2024-05-14","مائدة مستديرة \" الإعلام والثقافة العلمية نحو ثقافة منخفضة للكربون فى مصر والتوعية بالتغيرات المناخية واّثارها \"","ندوات وأمسيات المجلس الأعلى للثقافة","لجنة تنمية الثقافة العلمية ولجنتي الجغرافيا والإعلام","12م","12م الفنون","رابط اليوتيوب","رابط الفيسبوك"]
[{"$f":"IF(C171>0,SUBTOTAL(3,$C$9:C171),\"\")","v":163},163,"2024-05-14","ندوة \"دور المجتمع الأهلي فى تنمية ثقافة القانون والمواطنة والإنسان\"","ندوات وأمسيات المجلس الأعلى للثقافة","لجنة ثقافة القانون والمواطنة وحقوق الإنسان","6م","6م المجلس","رابط اليوتيوب","رابط الفيسبوك"]
[{"$f":"IF(C172>0,SUBTOTAL(3,$C$9:C172),\"\")","v":164},164,"2024-05-14","محاضرة الذكاء الاصطناعي ما بعد -ChatGPT - الحلقة الخمسون","سلسلة ثقافة تك","لجنة الثقافة الرقمية والبنية","19:00:00","7م أونلاين","رابط اليوتيوب","رابط الفيسبوك",null,"سلسلة ثقافة تك"]
[{"$f":"IF(C173>0,SUBTOTAL(3,$C$9:C173),\"\")","v":165},165,"2024-05-14","مبادرة وعي بالقانون - الحلقة الرابعة عشرة - السفيرة مشيرة خطاب","مبادرة وعي بالقانون","لجنة ثقافة القانون والمواطنة وحقوق الإنسان","8 م أونلاين","8 م أونلاين","رابط اليوتيوب","رابط الفيسبوك",null,"سلسلة مبادرة وعي"]
[{"$f":"IF(C174>0,SUBTOTAL(3,$C$9:C174),\"\")","v":166},166,"2024-05-15","ندوة أساليب الحد من الهدر الغذائي","ندوات وأمسيات المجلس الأعلى للثقافة","لجنة الجغرافيا","5م","5م المجلس","رابط اليوتيوب","رابط الفيسبوك"]
[{"$f":"IF(C175>0,SUBTOTAL(3,$C$9:C175),\"\")","v":167},167,"2024-05-15","ندوة تواصل","ندوات وأمسيات المجلس الأعلى للثقافة","لجنة السرد القصصي والروائي","5م","5م المؤتمرات","رابط اليوتيوب","رابط الفيسبوك"]
[{"$f":"IF(C176>0,SUBTOTAL(3,$C$9:C176),\"\")","v":168},168,"2024-05-16","مائدة مستديرة \" المستقبل ومجتمع مابعد طفرة الذكاء الإصطناعي\" بمناسبة اليوم العالمي لمجتمع المعلوماتية","ندوات وأمسيات المجلس الأعلى للثقافة","لجنة الثقافة الرقمية","7م أونلاين","7مأونلاين","رابط اليوتيوب","رابط الفيسبوك"]
[{"$f":"IF(C177>0,SUBTOTAL(3,$C$9:C177),\"\")","v":169},169,"2024-05-19","ندوة المحور الفكري لمهرجان إيزيس","ندوات وأمسيات المجلس الأعلى للثقافة","أمانة المؤتمرات استضافة","10ص","10ص المؤتمرات"]
[{"$f":"IF(C178>0,SUBTOTAL(3,$C$9:C178),\"\")","v":170},170,"2024-05-19","ندوة\" المتاحف ودورها فى تنمية المجتمع\"","ندوات وأمسيات المجلس الأعلى للثقافة","لجنة التاريخ والاّثار ولجنة الفنون التشكيلية","6م","6م المؤتمرات","رابط اليوتيوب","رابط الفيسبوك"]
[{"$f":"IF(C179>0,SUBTOTAL(3,$C$9:C179),\"\")","v":171},171,"2024-05-20","ندوة\"الشباب والتنوع الثقافي في عصر الذكاء الاصطناعي\"","ندوات وأمسيات المجلس الأعلى للثقافة","أمانة المؤتمرات","11ص\n","المجلس","رابط اليوتيوب","رابط الفيسبوك",null,"شباب"]
[{"$f":"IF(C180>0,SUBTOTAL(3,$C$9:C180),\"\")","v":172},172,"2024-05-20","ندوة\"الشباب والهوية في ظل مستجدات العصر\"","ندوات وأمسيات المجلس الأعلى للثقافة","أمانة المؤتمرات","11.30ص\n","المؤتمرات","رابط اليوتيوب","رابط الفيسبوك",null,"شباب"]
[{"$f":"IF(C181>0,SUBTOTAL(3,$C$9:C181),\"\")","v":173},173,"2024-05-20","ندوة حوار","ندوات وأمسيات المجلس الأعلى للثقافة","لجنة السرد القصصي والروائي","12م","12م أونلاين","رابط اليوتيوب","رابط الفيسبوك"]
[{"$f":"IF(C182>0,SUBTOTAL(3,$C$9:C182),\"\")","v":174},174,"2024-05-21","ندوة مسرح الطفل وصناعة المستقبل","ندوات وأمسيات المجلس الأعلى للثقافة","لجنة الفلسفة","12م","12م المؤتمرات","رابط اليوتيوب","رابط الفيسبوك",null,"طفل"]
[{"$f":"IF(C183>0,SUBTOTAL(3,$C$9:C183),\"\")","v":175},175,"2024-05-21","ندوة\" تكريم رواد التربية وعلم النفس\"","ندوات وأمسيات المجلس الأعلى للثقافة","لجنة التربية وعلم النفس","6م","6م المؤتمرات","رابط اليوتيوب","رابط الفيسبوك"]
[{"$f":"IF(C184>0,SUBTOTAL(3,$C$9:C184),\"\")","v":176},176,"2024-05-21","مبادرة وعي الحلقة الخامسة عشرة - هالة رمضان","سلسلة مبادرة وعي","لجنة ثقافة القانون والمواطنة وحقوق الإنسان","20:00:00","8م أونلاين","رابط اليوتيوب","رابط الفيسبوك"]
[{"$f":"IF(C185>0,SUBTOTAL(3,$C$9:C185),\"\")","v":177},177,"2024-05-21","ندوة تحديات الترجمة  في عصر العولمة","ندوات وأمسيات المجلس الأعلى للثقافة","لجنة الترجمة","12 ظ","20 ظ كلية الاألسن جامعة عين شمس","رابط اليوتيوب","رابط الفيسبوك"]
[{"$f":"IF(C186>0,SUBTOTAL(3,$C$9:C186),\"\")","v":178},178,"2024-05-21","ندوة \" أخر تطورات الذكاء الإصطناعي وأخلاقيات الإستخدام\"","ندوات وأمسيات المجلس الأعلى للثقافة","لجنة الثقافة الرقمية","8م","8م أونلاين","رابط اليوتيوب","رابط الفيسبوك"]
[{"$f":"IF(C187>0,SUBTOTAL(3,$C$9:C187),\"\")","v":179},179,"2024-05-22","ندوة إطلالة على التنوع البيولوجي","ندوات وأمسيات المجلس الأعلى للثقافة","لجنة الجغرافيا والبيئة بالتعاون مع لجنة الثقافة العلمية والتفكير الابتكاري","5م","5م قاعة المجلس","رابط اليوتيوب","رابط الفيسبوك"]
[{"$f":"IF(C188>0,SUBTOTAL(3,$C$9:C188),\"\")","v":180},180,"2024-05-26","حلقة نقاشية \" الإدارة الحكومية للصناعات الثقافية : الوضع الراهن واّفاق التطوير","ندوات وأمسيات المجلس الأعلى للثقافة","لجنة تطوير الإدارة الثقافية وتشريعاتها","5م","5م الفنون"]
[{"$f":"IF(C189>0,SUBTOTAL(3,$C$9:C189),\"\")","v":181},181,"2024-05-26","ندوة \" الأيام الخوالي\"","ندوات وأمسيات المجلس الأعلى للثقافة","لجنة الترجمة","6م","6م المؤتمرات","رابط اليوتيوب","رابط الفيسبوك"]
[{"$f":"IF(C190>0,SUBTOTAL(3,$C$9:C190),\"\")","v":182},182,"2024-05-28","مبادرة وعي الحلقة السادسة عشرة - السفير صلاح  عبد الصادق","سلسلة مبادرة وعي","لجنة ثقافة القانون والمواطنة وحقوق الإنسان","8م أونلاين","8م أونلاين","رابط اليوتيوب","رابط الفيسبوك",null,"سلسلة مبادرة وعي"]
[{"$f":"IF(C191>0,SUBTOTAL(3,$C$9:C191),\"\")","v":183},183,"2024-05-28","محاضرة \"تأثير الذكاء الاصطناعي على الصحفيين والإعلاميين\" - د. فتحي عامر - سلسلة ثقافة تك - الحلقة 51","سلسلة ثقافة تك","لجنة الثقافة الرقمية والبنية المعلوماتية","7م أونلاين","7م أونلاين","رابط اليوتيوب","رابط الفيسبوك",null,"سلسلة ثقافة تك"]
[{"$f":"IF(C192>0,SUBTOTAL(3,$C$9:C192),\"\")","v":184},184,"2024-05-29","أمسية شعرية شبابيك على مجدي نجيب","ندوات وأمسيات المجلس الأعلى للثقافة","لجنة الشعر","7م","المؤتمرات","رابط اليوتيوب","رابط الفيسبوك",null,"شعر"]
[{"$f":"IF(C193>0,SUBTOTAL(3,$C$9:C193),\"\")","v":185},185,"2024-05-29","ندوة \" السياسات السياحية والوعي المجتمعي\"","ندوات وأمسيات المجلس الأعلى للثقافة","لجنة الإقتصاد والعلوم السياسية","6م","6م الفنون0","رابط اليوتيوب","رابط الفيسبوك"]
[{"$f":"IF(C194>0,SUBTOTAL(3,$C$9:C194),\"\")","v":186},186,"2024-05-30","ندوة : (حق المؤلف وابتكارات الذكاء الاصطناعي..تحديات ورؤى)","ندوات وأمسيات المجلس الأعلى للثقافة","لجنة حماية الملكية الفكرية بالتعاون مع لجنة الثقافة الرقمية والبنية المعلوماتية ","6م","6م قاعة المجلس","رابط اليوتيوب","رابط الفيسبوك"]
[{"$f":"IF(C195>0,SUBTOTAL(3,$C$9:C195),\"\")","v":187},187,"2024-06-03","ندوة \" الطفل والإعلام والهوية المصرية\"","ندوات وأمسيات المجلس الأعلى للثقافة","لجنة الإعلام ولجنة فنون الطفل","2م ","المجلس","رابط اليوتيوب","رابط الفيسبوك",null,"طفل"]
[{"$f":"IF(C196>0,SUBTOTAL(3,$C$9:C196),\"\")","v":188},188,"2024-06-04","ندوة \" الذكاء الاصطناعي بين الفرص والتحديات\"","ندوات وأمسيات المجلس الأعلى للثقافة","لجنة الفلسفة وعلم الاجتماع والأنثربولوجيا","12ظ","المؤتمرات","رابط اليوتيوب","رابط الفيسبوك"]
[{"$f":"IF(C197>0,SUBTOTAL(3,$C$9:C197),\"\")","v":189},189,"2024-06-09","مبادرة وعى بالقانون د/عبده العشري الحلقة ال17","سلسلة مبادرة وعي","لجنة ثقافة القانون والمواطنة وحقوق الإنسان","8م","أونلاين","رابط اليوتيوب","رابط الفيسبوك"]
[{"$f":"IF(C198>0,SUBTOTAL(3,$C$9:C198),\"\")","v":190},190,"2024-06-05","ندوة \" حازم المستكاوي الفنان والإنسان","ندوات وأمسيات المجلس الأعلى للثقافة","لجنة الفنون التشيكيلية والعمارة","6م","المجلس","رابط اليوتيوب","رابط الفيسبوك"]
[{"$f":"IF(C199>0,SUBTOTAL(3,$C$9:C199),\"\")","v":191},191,"2024-06-06","ندوة \" أدب الطفل والرقمنة","ندوات وأمسيات المجلس الأعلى للثقافة","لجنة فنون الطفل والثقافة الرقمية والبنية المعلوماتية","5م","الفنون","رابط اليوتيوب","رابط الفيسبوك",null,"طفل"]
[{"$f":"IF(C200>0,SUBTOTAL(3,$C$9:C200),\"\")","v":192},192,"2024-06-09","منتدى الثقافة القانونية - \"الثقافة والإعلام والقانون من منظور حقوق الإنسان والمواطنة","ندوات وأمسيات المجلس الأعلى للثقافة","لجنة ثقافة القانون والمواطنة وحقوق الإنسان","12 ظ \nالمركز القومي لحقوق الإنسان","12 ظ \nالمركز القومي لحقوق الإنسان","رابط اليوتيوب","رابط الفيسبوك"]
[{"$f":"IF(C201>0,SUBTOTAL(3,$C$9:C201),\"\")","v":193},193,"2024-06-10","أمسية ثقافية لتكريم الفائزين في مسابقة الشعر وجوائز الدولة التشجيعية في مجال الشعر لعام 2024","ندوات وأمسيات المجلس الأعلى للثقافة","لجنة الشعر",null,"7م\nقاعة الندوات","رابط اليوتيوب","رابط الفيسبوك"]
[{"$f":"IF(C202>0,SUBTOTAL(3,$C$9:C202),\"\")","v":194},194,"2024-06-11","ندوة: \"إبداعات شباب ذوي الهمم\"","ندوات وأمسيات المجلس الأعلى للثقافة","لجنة الشباب",null,"1 م\nقصر ثقافة دمنهور","رابط اليوتيوب","رابط الفيسبوك",null,"ذوي الهمم"]
[{"$f":"IF(C203>0,SUBTOTAL(3,$C$9:C203),\"\")","v":195},{"$f":"ROW()-8","v":195},"2024-06-11","محاضرة \" ChatGpt الي اين ؟\" - المهندس/ زياد عبد التواب - سلسلة ثقافة تك - الحلقة 52","سلسلة ثقافة تك","لجنة الثقافة الرقمية والبنية المعلوماتية",null,"7 م\nأونلاين","رابط اليوتيوب","رابط الفيسبوك",null,"سلسلة ثقافة تك"]
[{"$f":"IF(C204>0,SUBTOTAL(3,$C$9:C204),\"\")","v":196},196,"2024-06-11","مبادرة وعي بالقانون - اللواء الدكتور/ مصطفى منير - الحلقة الثامنة عشرة","سلسلة مبادرة وعي بالقانون","لجنة ثقافة القانون والمواطنة وحقوق الإنسان",null,"8 م\nأونلاين","رابط اليوتيوب","رابط الفيسبوك"]
[{"$f":"IF(C205>0,SUBTOTAL(3,$C$9:C205),\"\")","v":197},{"$f":"ROW()-8","v":197},"2024-06-12","ندوة: \"استعادة الأراضي المتدهورة ومكافحة الجفاف والتصحر\" بمناسبة يوم البيئة العالمي**","ندوات وأمسيات المجلس الأعلى للثقافة","لجنة الجغرافيا",null,"5 م\nقاعة المجلس","رابط اليوتيوب","رابط الفيسبوك"]
[{"$f":"IF(C206>0,SUBTOTAL(3,$C$9:C206),\"\")","v":198},198,"2024-06-13","مائدة مستديرة: \"ريادة الأعمال الثقافية وتسويق المعارض الفنية البصرية.. المعرض العام نموذجًا\"","ندوات وأمسيات المجلس الأعلى للثقافة","لجنة الشباب بالتعاون مع لجنة الفنون التشكيلية والعمارة، وقطاع الفنون التشكيلية",null,"6 م\nقاعة المجلس","رابط اليوتيوب","رابط الفيسبوك"]
[{"$f":"IF(C207>0,SUBTOTAL(3,$C$9:C207),\"\")","v":199},{"$f":"ROW()-8","v":199},"2024-06-24","ندوة: \" دور التقنيات الحديثة والوسائل المساعدة في حياة الأشخاص ذوي الإعاقة","ندوات وأمسيات المجلس الأعلى للثقافة","أمانة المؤتمرات",null,"10 ص\nقاعة الندوات","رابط اليوتيوب","رابط الفيسبوك",null,"ذوي الهمم"]
[{"$f":"IF(C208>0,SUBTOTAL(3,$C$9:C208),\"\")","v":200},200,"2024-06-25","مبادرة وعى بالقانون د/رفعت فياض - الحلقة التاسعة عشرة","سلسلة بعنوان مبادرة وعي بالقانون","لجنة ثقافة القانون والمواطنة وحقوق الإنسان",null,"8 م أونلاين\n","رابط اليوتيوب","رابط الفيسبوك"]
[{"$f":"IF(C209>0,SUBTOTAL(3,$C$9:C209),\"\")","v":201},201,"2024-06-25","محاضرة محاضرة \"الذكاء الاصطناعي والصحة\" المهندس/ محمد عزام - سلسلة ثقافة تك - الحلقة 53","سلسلة ثقافة تك","لجنة الثقافة الرقمية والبنية المعلوماتية",null,"7 م أونلاين\n","رابط اليوتيوب","رابط الفيسبوك",null,"سلسلة ثقافة تك"]
[{"$f":"IF(C210>0,SUBTOTAL(3,$C$9:C210),\"\")","v":202},202,"2024-06-26","ندوةالتعليم الفني والتكنولوجي وتطور سوق العمل","ندوات وأمسيات المجلس الأعلى للثقافة","لجنة الإقتصاد والعلوم السياسية ولجنة مواجهة التطرف والإرهاب",null,"6 م أالمجلس\n","رابط  اليوتيوب","رابط الفيسبوك"]
[{"$f":"IF(C211>0,SUBTOTAL(3,$C$9:C211),\"\")","v":203},203,"2024-06-26","العدد الأول لمجلة \"ثقافة علمية: رؤية عصرية\"","مجلة \"ثقافة علمية مجلة فصلية","لجنة تنميــة الثقافــة العلميــة والتفكيرالابتكاري",null,"   أونلاين",null,"رابط الفيسبوك"]
[{"$f":"IF(C212>0,SUBTOTAL(3,$C$9:C212),\"\")","v":204},204,"2024-06-27"," أمسية ثقافية بعنوان \"تواصل","ندوات وأمسيات المجلس الأعلى للثقافة","لجنة الشعر",null,"5 م المجلس\n","رابط اليوتيوب ","رابط الفيسبوك"]
[{"$f":"IF(C213>0,SUBTOTAL(3,$C$9:C213),\"\")","v":205},205,"2024-07-02","30 يونيو .. رؤية استشرافية لعقد جديد مائدة مستديرة","ندوات وأمسيات المجلس الأعلى للثقافة","أمانة المؤتمرات",null,"5 م المجلس\n","رابط اليوتيوب","رابط فيسبوك"]
[{"$f":"IF(C214>0,SUBTOTAL(3,$C$9:C214),\"\")","v":206},206,"2024-07-02","مبادرة وعي بالقانون  دكتور/ حسين إبراهيم - الحلقة العشرون","سلسلة بعنوان مبادرة وعي بالقانون","لجنة ثقافة القانون والمواطنة وحقوق الإنسان",null,"8 م المجلس\nأونلاين","رابط اليوتيوب","رابط الفيسبوك",null,"مبادرة وعي"]
[{"$f":"IF(C215>0,SUBTOTAL(3,$C$9:C215),\"\")","v":207},207,"2024-07-09","محاضرة \"أنماط استخدام شبكات التواصل الاجتماعي\"المهندس/ زياد عبد التواب","سلسلة ثقافة تك","لجنة الثقافة الرقمية والبنية المعلوماتية",null,"7 م\nأونلاين","رابط اليوتيوب","رابط الفيسبوك",null,"سلسلة ثقافة تك"]
[{"$f":"IF(C216>0,SUBTOTAL(3,$C$9:C216),\"\")","v":208},208,"2024-07-10"," ندوة \"حركة عدم الانحياز ودورها العالمي\"أيام الثقافة الصربية في مصر اليوم الأول","ندوات وأمسيات المجلس الأعلى للثقافة","أمانة المؤتمرات",null,"11 ص\nقاعة المجلس","رابط اليوتيوب","رابط الفيسبوك"]
[{"$f":"IF(C217>0,SUBTOTAL(3,$C$9:C217),\"\")","v":""},209]
[{"$f":"IF(C218>0,SUBTOTAL(3,$C$9:C218),\"\")","v":""},210]
[{"$f":"IF(C219>0,SUBTOTAL(3,$C$9:C219),\"\")","v":""},211]
[{"$f":"IF(C220>0,SUBTOTAL(3,$C$9:C220),\"\")","v":""},212]
[{"$f":"IF(C221>0,SUBTOTAL(3,$C$9:C221),\"\")","v":""},213]
[{"$f":"IF(C222>0,SUBTOTAL(3,$C$9:C222),\"\")","v":""},214]
[{"$f":"IF(C223>0,SUBTOTAL(3,$C$9:C223),\"\")","v":""},215]
[{"$f":"IF(C224>0,SUBTOTAL(3,$C$9:C224),\"\")","v":""},216]
[{"$f":"IF(C225>0,SUBTOTAL(3,$C$9:C225),\"\")","v":""},217]
[{"$f":"IF(C226>0,SUBTOTAL(3,$C$9:C226),\"\")","v":""},218]
[{"$f":"IF(C227>0,SUBTOTAL(3,$C$9:C227),\"\")","v":""},219]
[{"$f":"IF(C228>0,SUBTOTAL(3,$C$9:C228),\"\")","v":""},220]
[{"$f":"IF(C229>0,SUBTOTAL(3,$C$9:C229),\"\")","v":""},221]
[{"$f":"IF(C230>0,SUBTOTAL(3,$C$9:C230),\"\")","v":""},222]
[{"$f":"IF(C231>0,SUBTOTAL(3,$C$9:C231),\"\")","v":""},223]
[{"$f":"IF(C232>0,SUBTOTAL(3,$C$9:C232),\"\")","v":""},224]
[{"$f":"IF(C233>0,SUBTOTAL(3,$C$9:C233),\"\")","v":""},225]
[{"$f":"IF(C234>0,SUBTOTAL(3,$C$9:C234),\"\")","v":""},226]
[{"$f":"IF(C235>0,SUBTOTAL(3,$C$9:C235),\"\")","v":""},227]
[{"$f":"IF(C236>0,SUBTOTAL(3,$C$9:C236),\"\")","v":""},228]
[{"$f":"IF(C237>0,SUBTOTAL(3,$C$9:C237),\"\")","v":""},229]
[{"$f":"IF(C238>0,SUBTOTAL(3,$C$9:C238),\"\")","v":""},230]
[{"$f":"IF(C239>0,SUBTOTAL(3,$C$9:C239),\"\")","v":""},231]
[{"$f":"IF(C240>0,SUBTOTAL(3,$C$9:C240),\"\")","v":""},232]
[{"$f":"IF(C241>0,SUBTOTAL(3,$C$9:C241),\"\")","v":""},233]
[{"$f":"IF(C242>0,SUBTOTAL(3,$C$9:C242),\"\")","v":""},234]
[{"$f":"IF(C243>0,SUBTOTAL(3,$C$9:C243),\"\")","v":""},235]
[{"$f":"IF(C244>0,SUBTOTAL(3,$C$9:C244),\"\")","v":""},236]
[{"$f":"IF(C245>0,SUBTOTAL(3,$C$9:C245),\"\")","v":""},237]
[{"$f":"IF(C246>0,SUBTOTAL(3,$C$9:C246),\"\")","v":""},238]
[{"$f":"IF(C247>0,SUBTOTAL(3,$C$9:C247),\"\")","v":""},239]
[{"$f":"IF(C248>0,SUBTOTAL(3,$C$9:C248),\"\")","v":""},240]
[{"$f":"IF(C249>0,SUBTOTAL(3,$C$9:C249),\"\")","v":""},241]
[{"$f":"IF(C250>0,SUBTOTAL(3,$C$9:C250),\"\")","v":""},242]
[{"$f":"IF(C251>0,SUBTOTAL(3,$C$9:C251),\"\")","v":""},243]
[{"$f":"IF(C252>0,SUBTOTAL(3,$C$9:C252),\"\")","v":""},244]
[{"$f":"IF(C253>0,SUBTOTAL(3,$C$9:C253),\"\")","v":""},245]
[{"$f":"IF(C254>0,SUBTOTAL(3,$C$9:C254),\"\")","v":""},246]
[{"$f":"IF(C255>0,SUBTOTAL(3,$C$9:C255),\"\")","v":""},247]
[{"$f":"IF(C256>0,SUBTOTAL(3,$C$9:C256),\"\")","v":""},248]
[{"$f":"IF(C257>0,SUBTOTAL(3,$C$9:C257),\"\")","v":""},249]
[{"$f":"IF(C258>0,SUBTOTAL(3,$C$9:C258),\"\")","v":""},250]
[{"$f":"IF(C259>0,SUBTOTAL(3,$C$9:C259),\"\")","v":""},251]
[{"$f":"IF(C260>0,SUBTOTAL(3,$C$9:C260),\"\")","v":""},252]
[{"$f":"IF(C261>0,SUBTOTAL(3,$C$9:C261),\"\")","v":""},253]
[{"$f":"IF(C262>0,SUBTOTAL(3,$C$9:C262),\"\")","v":""},254]
[{"$f":"IF(C263>0,SUBTOTAL(3,$C$9:C263),\"\")","v":""},255]
[{"$f":"IF(C264>0,SUBTOTAL(3,$C$9:C264),\"\")","v":""},256]
[{"$f":"IF(C265>0,SUBTOTAL(3,$C$9:C265),\"\")","v":""},257]
[{"$f":"IF(C266>0,SUBTOTAL(3,$C$9:C266),\"\")","v":""},258]
[{"$f":"IF(C267>0,SUBTOTAL(3,$C$9:C267),\"\")","v":""},259]
[{"$f":"IF(C268>0,SUBTOTAL(3,$C$9:C268),\"\")","v":""},260]
[{"$f":"IF(C269>0,SUBTOTAL(3,$C$9:C269),\"\")","v":""},261]
[{"$f":"IF(C270>0,SUBTOTAL(3,$C$9:C270),\"\")","v":""},262]
[{"$f":"IF(C271>0,SUBTOTAL(3,$C$9:C271),\"\")","v":""},{"$f":"ROW()-8","v":263}]
[{"$f":"IF(C272>0,SUBTOTAL(3,$C$9:C272),\"\")","v":""},264]
[{"$f":"IF(C273>0,SUBTOTAL(3,$C$9:C273),\"\")","v":""},265]
[{"$f":"IF(C274>0,SUBTOTAL(3,$C$9:C274),\"\")","v":""},266]
[{"$f":"IF(C275>0,SUBTOTAL(3,$C$9:C275),\"\")","v":""},267]
[{"$f":"IF(C276>0,SUBTOTAL(3,$C$9:C276),\"\")","v":""},268]
[{"$f":"IF(C277>0,SUBTOTAL(3,$C$9:C277),\"\")","v":""},269]
[{"$f":"IF(C278>0,SUBTOTAL(3,$C$9:C278),\"\")","v":""},270]
[{"$f":"IF(C279>0,SUBTOTAL(3,$C$9:C279),\"\")","v":""},271]
[{"$f":"IF(C280>0,SUBTOTAL(3,$C$9:C280),\"\")","v":""},272]
[{"$f":"IF(C281>0,SUBTOTAL(3,$C$9:C281),\"\")","v":""},273]
[{"$f":"IF(C282>0,SUBTOTAL(3,$C$9:C282),\"\")","v":""},274]
[{"$f":"IF(C283>0,SUBTOTAL(3,$C$9:C283),\"\")","v":""},275]
[{"$f":"IF(C284>0,SUBTOTAL(3,$C$9:C284),\"\")","v":""},276]
[{"$f":"IF(C285>0,SUBTOTAL(3,$C$9:C285),\"\")","v":""},277]
[{"$f":"IF(C286>0,SUBTOTAL(3,$C$9:C286),\"\")","v":""},278]
[{"$f":"IF(C287>0,SUBTOTAL(3,$C$9:C287),\"\")","v":""},279]
[{"$f":"IF(C288>0,SUBTOTAL(3,$C$9:C288),\"\")","v":""},280]
[{"$f":"IF(C289>0,SUBTOTAL(3,$C$9:C289),\"\")","v":""},281]
[{"$f":"IF(C290>0,SUBTOTAL(3,$C$9:C290),\"\")","v":""},282]
[{"$f":"IF(C291>0,SUBTOTAL(3,$C$9:C291),\"\")","v":""},283]
[{"$f":"IF(C292>0,SUBTOTAL(3,$C$9:C292),\"\")","v":""},284]
[{"$f":"IF(C293>0,SUBTOTAL(3,$C$9:C293),\"\")","v":""},285]
[{"$f":"IF(C294>0,SUBTOTAL(3,$C$9:C294),\"\")","v":""},286]
[{"$f":"IF(C295>0,SUBTOTAL(3,$C$9:C295),\"\")","v":""},287]
[{"$f":"IF(C296>0,SUBTOTAL(3,$C$9:C296),\"\")","v":""},288]
[{"$f":"IF(C297>0,SUBTOTAL(3,$C$9:C297),\"\")","v":""},289]
[{"$f":"IF(C298>0,SUBTOTAL(3,$C$9:C298),\"\")","v":""},290]
[{"$f":"IF(C299>0,SUBTOTAL(3,$C$9:C299),\"\")","v":""},291]
[{"$f":"IF(C300>0,SUBTOTAL(3,$C$9:C300),\"\")","v":""},292]
[{"$f":"IF(C301>0,SUBTOTAL(3,$C$9:C301),\"\")","v":""},293]
[{"$f":"IF(C302>0,SUBTOTAL(3,$C$9:C302),\"\")","v":""},294]
[{"$f":"IF(C303>0,SUBTOTAL(3,$C$9:C303),\"\")","v":""},295]
[{"$f":"IF(C304>0,SUBTOTAL(3,$C$9:C304),\"\")","v":""},296]
[{"$f":"IF(C305>0,SUBTOTAL(3,$C$9:C305),\"\")","v":""},297]
[{"$f":"IF(C306>0,SUBTOTAL(3,$C$9:C306),\"\")","v":""},298]
[{"$f":"IF(C307>0,SUBTOTAL(3,$C$9:C307),\"\")","v":""},299]
[{"$f":"IF(C308>0,SUBTOTAL(3,$C$9:C308),\"\")","v":""},300]
[{"$f":"IF(C309>0,SUBTOTAL(3,$C$9:C309),\"\")","v":""},301]
[{"$f":"IF(C310>0,SUBTOTAL(3,$C$9:C310),\"\")","v":""},302]
[{"$f":"IF(C311>0,SUBTOTAL(3,$C$9:C311),\"\")","v":""},303]
[{"$f":"IF(C312>0,SUBTOTAL(3,$C$9:C312),\"\")","v":""},304]
[{"$f":"IF(C313>0,SUBTOTAL(3,$C$9:C313),\"\")","v":""},305]
[{"$f":"IF(C314>0,SUBTOTAL(3,$C$9:C314),\"\")","v":""},306]
[{"$f":"IF(C315>0,SUBTOTAL(3,$C$9:C315),\"\")","v":""},307]
[{"$f":"IF(C316>0,SUBTOTAL(3,$C$9:C316),\"\")","v":""},308]
[{"$f":"IF(C317>0,SUBTOTAL(3,$C$9:C317),\"\")","v":""},309]
[{"$f":"IF(C318>0,SUBTOTAL(3,$C$9:C318),\"\")","v":""},310]
[{"$f":"IF(C319>0,SUBTOTAL(3,$C$9:C319),\"\")","v":""},311]
[{"$f":"IF(C320>0,SUBTOTAL(3,$C$9:C320),\"\")","v":""},312]
[{"$f":"IF(C321>0,SUBTOTAL(3,$C$9:C321),\"\")","v":""},313]
[{"$f":"IF(C322>0,SUBTOTAL(3,$C$9:C322),\"\")","v":""},314]
[{"$f":"IF(C323>0,SUBTOTAL(3,$C$9:C323),\"\")","v":""},315]
[{"$f":"IF(C324>0,SUBTOTAL(3,$C$9:C324),\"\")","v":""},316]
[{"$f":"IF(C325>0,SUBTOTAL(3,$C$9:C325),\"\")","v":""},317]
[{"$f":"IF(C326>0,SUBTOTAL(3,$C$9:C326),\"\")","v":""},318]
[{"$f":"IF(C327>0,SUBTOTAL(3,$C$9:C327),\"\")","v":""},319]
[{"$f":"IF(C328>0,SUBTOTAL(3,$C$9:C328),\"\")","v":""},320]
[{"$f":"IF(C329>0,SUBTOTAL(3,$C$9:C329),\"\")","v":""},321]
[{"$f":"IF(C330>0,SUBTOTAL(3,$C$9:C330),\"\")","v":""},322]
[{"$f":"IF(C331>0,SUBTOTAL(3,$C$9:C331),\"\")","v":""},323]
[{"$f":"IF(C332>0,SUBTOTAL(3,$C$9:C332),\"\")","v":""},324]
[{"$f":"IF(C333>0,SUBTOTAL(3,$C$9:C333),\"\")","v":""},325]
[{"$f":"IF(C334>0,SUBTOTAL(3,$C$9:C334),\"\")","v":""},326]
[{"$f":"IF(C335>0,SUBTOTAL(3,$C$9:C335),\"\")","v":""},{"$f":"ROW()-8","v":327}]
[{"$f":"IF(C336>0,SUBTOTAL(3,$C$9:C336),\"\")","v":""},328]
[{"$f":"IF(C337>0,SUBTOTAL(3,$C$9:C337),\"\")","v":""},329]
[{"$f":"IF(C338>0,SUBTOTAL(3,$C$9:C338),\"\")","v":""},330]
[{"$f":"IF(C339>0,SUBTOTAL(3,$C$9:C339),\"\")","v":""},331]
[{"$f":"IF(C340>0,SUBTOTAL(3,$C$9:C340),\"\")","v":""},332]
[{"$f":"IF(C341>0,SUBTOTAL(3,$C$9:C341),\"\")","v":""},333]
[{"$f":"IF(C342>0,SUBTOTAL(3,$C$9:C342),\"\")","v":""},334]
[{"$f":"IF(C343>0,SUBTOTAL(3,$C$9:C343),\"\")","v":""},335]
[{"$f":"IF(C344>0,SUBTOTAL(3,$C$9:C344),\"\")","v":""},336]
[{"$f":"IF(C345>0,SUBTOTAL(3,$C$9:C345),\"\")","v":""},337]
[{"$f":"IF(C346>0,SUBTOTAL(3,$C$9:C346),\"\")","v":""},338]
[{"$f":"IF(C347>0,SUBTOTAL(3,$C$9:C347),\"\")","v":""},339]
[{"$f":"IF(C348>0,SUBTOTAL(3,$C$9:C348),\"\")","v":""},340]
[{"$f":"IF(C349>0,SUBTOTAL(3,$C$9:C349),\"\")","v":""},341]
[{"$f":"IF(C350>0,SUBTOTAL(3,$C$9:C350),\"\")","v":""},342]
[{"$f":"IF(C351>0,SUBTOTAL(3,$C$9:C351),\"\")","v":""},343]
[{"$f":"IF(C352>0,SUBTOTAL(3,$C$9:C352),\"\")","v":""},344]
[{"$f":"IF(C353>0,SUBTOTAL(3,$C$9:C353),\"\")","v":""},345]
[{"$f":"IF(C354>0,SUBTOTAL(3,$C$9:C354),\"\")","v":""},346]
[{"$f":"IF(C355>0,SUBTOTAL(3,$C$9:C355),\"\")","v":""},347]
[{"$f":"IF(C356>0,SUBTOTAL(3,$C$9:C356),\"\")","v":""},348]
[{"$f":"IF(C357>0,SUBTOTAL(3,$C$9:C357),\"\")","v":""},349]
[{"$f":"IF(C358>0,SUBTOTAL(3,$C$9:C358),\"\")","v":""},350]
[{"$f":"IF(C359>0,SUBTOTAL(3,$C$9:C359),\"\")","v":""},351]
[{"$f":"IF(C360>0,SUBTOTAL(3,$C$9:C360),\"\")","v":""},352]
[{"$f":"IF(C361>0,SUBTOTAL(3,$C$9:C361),\"\")","v":""},353]
[{"$f":"IF(C362>0,SUBTOTAL(3,$C$9:C362),\"\")","v":""},354]
[{"$f":"IF(C363>0,SUBTOTAL(3,$C$9:C363),\"\")","v":""},355]
[{"$f":"IF(C364>0,SUBTOTAL(3,$C$9:C364),\"\")","v":""},356]
[{"$f":"IF(C365>0,SUBTOTAL(3,$C$9:C365),\"\")","v":""},357]
[{"$f":"IF(C366>0,SUBTOTAL(3,$C$9:C366),\"\")","v":""},358]
[{"$f":"IF(C367>0,SUBTOTAL(3,$C$9:C367),\"\")","v":""},359]
[{"$f":"IF(C368>0,SUBTOTAL(3,$C$9:C368),\"\")","v":""},360]
[{"$f":"IF(C369>0,SUBTOTAL(3,$C$9:C369),\"\")","v":""},361]
[{"$f":"IF(C370>0,SUBTOTAL(3,$C$9:C370),\"\")","v":""},362]
[{"$f":"IF(C371>0,SUBTOTAL(3,$C$9:C371),\"\")","v":""},363]
[{"$f":"IF(C372>0,SUBTOTAL(3,$C$9:C372),\"\")","v":""},364]
[{"$f":"IF(C373>0,SUBTOTAL(3,$C$9:C373),\"\")","v":""},365]
[{"$f":"IF(C374>0,SUBTOTAL(3,$C$9:C374),\"\")","v":""},366]
[{"$f":"IF(C375>0,SUBTOTAL(3,$C$9:C375),\"\")","v":""},367]
[{"$f":"IF(C376>0,SUBTOTAL(3,$C$9:C376),\"\")","v":""},368]
[{"$f":"IF(C377>0,SUBTOTAL(3,$C$9:C377),\"\")","v":""},369]
[{"$f":"IF(C378>0,SUBTOTAL(3,$C$9:C378),\"\")","v":""},370]
[{"$f":"IF(C379>0,SUBTOTAL(3,$C$9:C379),\"\")","v":""},371]
[{"$f":"IF(C380>0,SUBTOTAL(3,$C$9:C380),\"\")","v":""},372]
[{"$f":"IF(C381>0,SUBTOTAL(3,$C$9:C381),\"\")","v":""},373]
[{"$f":"IF(C382>0,SUBTOTAL(3,$C$9:C382),\"\")","v":""},374]
[{"$f":"IF(C383>0,SUBTOTAL(3,$C$9:C383),\"\")","v":""},375]
[{"$f":"IF(C384>0,SUBTOTAL(3,$C$9:C384),\"\")","v":""},376]
[{"$f":"IF(C385>0,SUBTOTAL(3,$C$9:C385),\"\")","v":""},377]
[{"$f":"IF(C386>0,SUBTOTAL(3,$C$9:C386),\"\")","v":""},378]
[{"$f":"IF(C387>0,SUBTOTAL(3,$C$9:C387),\"\")","v":""},379]
[{"$f":"IF(C388>0,SUBTOTAL(3,$C$9:C388),\"\")","v":""},380]
[{"$f":"IF(C389>0,SUBTOTAL(3,$C$9:C389),\"\")","v":""},381]
[{"$f":"IF(C390>0,SUBTOTAL(3,$C$9:C390),\"\")","v":""},382]
[{"$f":"IF(C391>0,SUBTOTAL(3,$C$9:C391),\"\")","v":""},383]
[{"$f":"IF(C392>0,SUBTOTAL(3,$C$9:C392),\"\")","v":""},384]
[{"$f":"IF(C393>0,SUBTOTAL(3,$C$9:C393),\"\")","v":""},385]
[{"$f":"IF(C394>0,SUBTOTAL(3,$C$9:C394),\"\")","v":""},386]
[{"$f":"IF(C395>0,SUBTOTAL(3,$C$9:C395),\"\")","v":""},387]
[{"$f":"IF(C396>0,SUBTOTAL(3,$C$9:C396),\"\")","v":""},388]
[{"$f":"IF(C397>0,SUBTOTAL(3,$C$9:C397),\"\")","v":""},389]
[{"$f":"IF(C398>0,SUBTOTAL(3,$C$9:C398),\"\")","v":""},390]
[{"$f":"IF(C399>0,SUBTOTAL(3,$C$9:C399),\"\")","v":""},{"$f":"ROW()-8","v":391}]
[{"$f":"IF(C400>0,SUBTOTAL(3,$C$9:C400),\"\")","v":""},392]
[{"$f":"IF(C401>0,SUBTOTAL(3,$C$9:C401),\"\")","v":""},393]
[{"$f":"IF(C402>0,SUBTOTAL(3,$C$9:C402),\"\")","v":""},394]
[{"$f":"IF(C403>0,SUBTOTAL(3,$C$9:C403),\"\")","v":""},395]
[{"$f":"IF(C404>0,SUBTOTAL(3,$C$9:C404),\"\")","v":""},396]
[{"$f":"IF(C405>0,SUBTOTAL(3,$C$9:C405),\"\")","v":""},397]
[{"$f":"IF(C406>0,SUBTOTAL(3,$C$9:C406),\"\")","v":""},398]
[{"$f":"IF(C407>0,SUBTOTAL(3,$C$9:C407),\"\")","v":""},399]
[{"$f":"IF(C408>0,SUBTOTAL(3,$C$9:C408),\"\")","v":""},400]
[{"$f":"IF(C409>0,SUBTOTAL(3,$C$9:C409),\"\")","v":""},401]
[{"$f":"IF(C410>0,SUBTOTAL(3,$C$9:C410),\"\")","v":""},402]
[{"$f":"IF(C411>0,SUBTOTAL(3,$C$9:C411),\"\")","v":""},403]
[{"$f":"IF(C412>0,SUBTOTAL(3,$C$9:C412),\"\")","v":""},404]
[{"$f":"IF(C413>0,SUBTOTAL(3,$C$9:C413),\"\")","v":""},405]
[{"$f":"IF(C414>0,SUBTOTAL(3,$C$9:C414),\"\")","v":""},406]
[{"$f":"IF(C415>0,SUBTOTAL(3,$C$9:C415),\"\")","v":""},407]
[{"$f":"IF(C416>0,SUBTOTAL(3,$C$9:C416),\"\")","v":""},408]
[{"$f":"IF(C417>0,SUBTOTAL(3,$C$9:C417),\"\")","v":""},409]
[{"$f":"IF(C418>0,SUBTOTAL(3,$C$9:C418),\"\")","v":""},410]
[{"$f":"IF(C419>0,SUBTOTAL(3,$C$9:C419),\"\")","v":""},411]
[{"$f":"IF(C420>0,SUBTOTAL(3,$C$9:C420),\"\")","v":""},412]
[{"$f":"IF(C421>0,SUBTOTAL(3,$C$9:C421),\"\")","v":""},413]
[{"$f":"IF(C422>0,SUBTOTAL(3,$C$9:C422),\"\")","v":""},414]
[{"$f":"IF(C423>0,SUBTOTAL(3,$C$9:C423),\"\")","v":""},415]
[{"$f":"IF(C424>0,SUBTOTAL(3,$C$9:C424),\"\")","v":""},416]
[{"$f":"IF(C425>0,SUBTOTAL(3,$C$9:C425),\"\")","v":""},417]
[{"$f":"IF(C426>0,SUBTOTAL(3,$C$9:C426),\"\")","v":""},418]
[{"$f":"IF(C427>0,SUBTOTAL(3,$C$9:C427),\"\")","v":""},419]
[{"$f":"IF(C428>0,SUBTOTAL(3,$C$9:C428),\"\")","v":""},420]
[{"$f":"IF(C429>0,SUBTOTAL(3,$C$9:C429),\"\")","v":""},421]
[{"$f":"IF(C430>0,SUBTOTAL(3,$C$9:C430),\"\")","v":""},422]
[{"$f":"IF(C431>0,SUBTOTAL(3,$C$9:C431),\"\")","v":""},423]
[{"$f":"IF(C432>0,SUBTOTAL(3,$C$9:C432),\"\")","v":""},424]
[{"$f":"IF(C433>0,SUBTOTAL(3,$C$9:C433),\"\")","v":""},425]
[{"$f":"IF(C434>0,SUBTOTAL(3,$C$9:C434),\"\")","v":""},426]
[{"$f":"IF(C435>0,SUBTOTAL(3,$C$9:C435),\"\")","v":""},427]
[{"$f":"IF(C436>0,SUBTOTAL(3,$C$9:C436),\"\")","v":""},428]
[{"$f":"IF(C437>0,SUBTOTAL(3,$C$9:C437),\"\")","v":""},429]
[{"$f":"IF(C438>0,SUBTOTAL(3,$C$9:C438),\"\")","v":""},430]
[{"$f":"IF(C439>0,SUBTOTAL(3,$C$9:C439),\"\")","v":""},431]
[{"$f":"IF(C440>0,SUBTOTAL(3,$C$9:C440),\"\")","v":""},432]
[{"$f":"IF(C441>0,SUBTOTAL(3,$C$9:C441),\"\")","v":""},433]
[{"$f":"IF(C442>0,SUBTOTAL(3,$C$9:C442),\"\")","v":""},434]
[{"$f":"IF(C443>0,SUBTOTAL(3,$C$9:C443),\"\")","v":""},435]
[{"$f":"IF(C444>0,SUBTOTAL(3,$C$9:C444),\"\")","v":""},436]
[{"$f":"IF(C445>0,SUBTOTAL(3,$C$9:C445),\"\")","v":""},437]
[{"$f":"IF(C446>0,SUBTOTAL(3,$C$9:C446),\"\")","v":""},438]
[{"$f":"IF(C447>0,SUBTOTAL(3,$C$9:C447),\"\")","v":""},439]
[{"$f":"IF(C448>0,SUBTOTAL(3,$C$9:C448),\"\")","v":""},440]
[{"$f":"IF(C449>0,SUBTOTAL(3,$C$9:C449),\"\")","v":""},441]
[{"$f":"IF(C450>0,SUBTOTAL(3,$C$9:C450),\"\")","v":""},442]
[{"$f":"IF(C451>0,SUBTOTAL(3,$C$9:C451),\"\")","v":""},443]
[{"$f":"IF(C452>0,SUBTOTAL(3,$C$9:C452),\"\")","v":""},444]
[{"$f":"IF(C453>0,SUBTOTAL(3,$C$9:C453),\"\")","v":""},445]
[{"$f":"IF(C454>0,SUBTOTAL(3,$C$9:C454),\"\")","v":""},446]
[{"$f":"IF(C455>0,SUBTOTAL(3,$C$9:C455),\"\")","v":""},447]
[{"$f":"IF(C456>0,SUBTOTAL(3,$C$9:C456),\"\")","v":""},448]
[{"$f":"IF(C457>0,SUBTOTAL(3,$C$9:C457),\"\")","v":""},449]
[{"$f":"IF(C458>0,SUBTOTAL(3,$C$9:C458),\"\")","v":""},450]
[{"$f":"IF(C459>0,SUBTOTAL(3,$C$9:C459),\"\")","v":""},451]
[{"$f":"IF(C460>0,SUBTOTAL(3,$C$9:C460),\"\")","v":""},452]
[{"$f":"IF(C461>0,SUBTOTAL(3,$C$9:C461),\"\")","v":""},453]
[{"$f":"IF(C462>0,SUBTOTAL(3,$C$9:C462),\"\")","v":""},454]
[{"$f":"IF(C463>0,SUBTOTAL(3,$C$9:C463),\"\")","v":""},{"$f":"ROW()-8","v":455}]
[{"$f":"IF(C464>0,SUBTOTAL(3,$C$9:C464),\"\")","v":""},456]
[{"$f":"IF(C465>0,SUBTOTAL(3,$C$9:C465),\"\")","v":""},457]
[{"$f":"IF(C466>0,SUBTOTAL(3,$C$9:C466),\"\")","v":""},458]
[{"$f":"IF(C467>0,SUBTOTAL(3,$C$9:C467),\"\")","v":""},459]
[{"$f":"IF(C468>0,SUBTOTAL(3,$C$9:C468),\"\")","v":""},460]
[{"$f":"IF(C469>0,SUBTOTAL(3,$C$9:C469),\"\")","v":""},461]
[{"$f":"IF(C470>0,SUBTOTAL(3,$C$9:C470),\"\")","v":""},462]
[{"$f":"IF(C471>0,SUBTOTAL(3,$C$9:C471),\"\")","v":""},463]
[{"$f":"IF(C472>0,SUBTOTAL(3,$C$9:C472),\"\")","v":""},464]
[{"$f":"IF(C473>0,SUBTOTAL(3,$C$9:C473),\"\")","v":""},465]
[{"$f":"IF(C474>0,SUBTOTAL(3,$C$9:C474),\"\")","v":""},466]
[{"$f":"IF(C475>0,SUBTOTAL(3,$C$9:C475),\"\")","v":""},467]
[{"$f":"IF(C476>0,SUBTOTAL(3,$C$9:C476),\"\")","v":""},468]
[{"$f":"IF(C477>0,SUBTOTAL(3,$C$9:C477),\"\")","v":""},469]
[{"$f":"IF(C478>0,SUBTOTAL(3,$C$9:C478),\"\")","v":""},470]
[{"$f":"IF(C479>0,SUBTOTAL(3,$C$9:C479),\"\")","v":""},471]
[{"$f":"IF(C480>0,SUBTOTAL(3,$C$9:C480),\"\")","v":""},472]
[{"$f":"IF(C481>0,SUBTOTAL(3,$C$9:C481),\"\")","v":""},473]
[{"$f":"IF(C482>0,SUBTOTAL(3,$C$9:C482),\"\")","v":""},474]
[{"$f":"IF(C483>0,SUBTOTAL(3,$C$9:C483),\"\")","v":""},475]
[{"$f":"IF(C484>0,SUBTOTAL(3,$C$9:C484),\"\")","v":""},476]
[{"$f":"IF(C485>0,SUBTOTAL(3,$C$9:C485),\"\")","v":""},477]
[{"$f":"IF(C486>0,SUBTOTAL(3,$C$9:C486),\"\")","v":""},478]
[{"$f":"IF(C487>0,SUBTOTAL(3,$C$9:C487),\"\")","v":""},479]
[{"$f":"IF(C488>0,SUBTOTAL(3,$C$9:C488),\"\")","v":""},480]
[{"$f":"IF(C489>0,SUBTOTAL(3,$C$9:C489),\"\")","v":""},481]
[{"$f":"IF(C490>0,SUBTOTAL(3,$C$9:C490),\"\")","v":""},482]
[{"$f":"IF(C491>0,SUBTOTAL(3,$C$9:C491),\"\")","v":""},483]
[{"$f":"IF(C492>0,SUBTOTAL(3,$C$9:C492),\"\")","v":""},484]
[{"$f":"IF(C493>0,SUBTOTAL(3,$C$9:C493),\"\")","v":""},485]
[{"$f":"IF(C494>0,SUBTOTAL(3,$C$9:C494),\"\")","v":""},486]
[{"$f":"IF(C495>0,SUBTOTAL(3,$C$9:C495),\"\")","v":""},487]
[{"$f":"IF(C496>0,SUBTOTAL(3,$C$9:C496),\"\")","v":""},488]
[{"$f":"IF(C497>0,SUBTOTAL(3,$C$9:C497),\"\")","v":""},489]
[{"$f":"IF(C498>0,SUBTOTAL(3,$C$9:C498),\"\")","v":""},490]
[{"$f":"IF(C499>0,SUBTOTAL(3,$C$9:C499),\"\")","v":""},491]
[{"$f":"IF(C500>0,SUBTOTAL(3,$C$9:C500),\"\")","v":""},492]
[{"$f":"IF(C501>0,SUBTOTAL(3,$C$9:C501),\"\")","v":""},493]
[{"$f":"IF(C502>0,SUBTOTAL(3,$C$9:C502),\"\")","v":""},494]
[{"$f":"IF(C503>0,SUBTOTAL(3,$C$9:C503),\"\")","v":""},495]
[{"$f":"IF(C504>0,SUBTOTAL(3,$C$9:C504),\"\")","v":""},496]
[{"$f":"IF(C505>0,SUBTOTAL(3,$C$9:C505),\"\")","v":""},497]
[{"$f":"IF(C506>0,SUBTOTAL(3,$C$9:C506),\"\")","v":""},498]
[{"$f":"IF(C507>0,SUBTOTAL(3,$C$9:C507),\"\")","v":""},499]
[{"$f":"IF(C508>0,SUBTOTAL(3,$C$9:C508),\"\")","v":""},500]
[{"$f":"IF(C509>0,SUBTOTAL(3,$C$9:C509),\"\")","v":""},501]
[{"$f":"IF(C510>0,SUBTOTAL(3,$C$9:C510),\"\")","v":""},502]
[{"$f":"IF(C511>0,SUBTOTAL(3,$C$9:C511),\"\")","v":""},503]
[{"$f":"IF(C512>0,SUBTOTAL(3,$C$9:C512),\"\")","v":""},504]
[{"$f":"IF(C513>0,SUBTOTAL(3,$C$9:C513),\"\")","v":""},505]
[{"$f":"IF(C514>0,SUBTOTAL(3,$C$9:C514),\"\")","v":""},506]
[{"$f":"IF(C515>0,SUBTOTAL(3,$C$9:C515),\"\")","v":""},507]
[{"$f":"IF(C516>0,SUBTOTAL(3,$C$9:C516),\"\")","v":""},508]
[{"$f":"IF(C517>0,SUBTOTAL(3,$C$9:C517),\"\")","v":""},509]
[{"$f":"IF(C518>0,SUBTOTAL(3,$C$9:C518),\"\")","v":""},510]
[{"$f":"IF(C519>0,SUBTOTAL(3,$C$9:C519),\"\")","v":""},511]
[{"$f":"IF(C520>0,SUBTOTAL(3,$C$9:C520),\"\")","v":""},512]
[{"$f":"IF(C521>0,SUBTOTAL(3,$C$9:C521),\"\")","v":""},513]

{"sheet":"الانشطة","index":1,"n_rows":12,"n_cols":11,"rows_kept":12,"cut":false,"hidden":false,"merged":[[5,8,5,9],[3,0,3,8]]}
[]
[null,null," من تاريخ","2024-01-01","الى تاريخ","2024-01-15"]
[]
["تقرير أنشطة وفعاليات الإدارة المركزية للشعب واللجان الثقافية \nعن الفترة من 1 يناير 2024 حتى 6 يونيو 2024"]
[]
["م","الرقم","تاريخ النشاط","اسم النشاط","منفذ النشاط","الجهة المنظمة","موعد النشاط","مكان النشاط","رابط النشاط",null,"ملاحظات"]
[1,1,"2024-01-03","محاضرة \"سكان مصر وتحديات المستقبل\"","ندوات وأمسيات المجلس الأعلى للثقافة","لجنة الجغرافيا والبيئة","5م","5م المجلس","رابط اليوتيوب","رابط الفيس","https://youtu.be/6gMb5z82lE0https://fb.watch/pmj9a62K7R/"]
[2,2,"2024-01-03","ندوة \"منصات التواصل الاجتماعي بين المصداقية والتضليل\"","ندوات وأمسيات المجلس الأعلى للثقافة","لجنة الثقافة الرقمية والبنية المعلوماتية","7م","7م أونلاين","رابط اليوتيوب","رابط الفيس","https://youtu.be/CQPlTi7aIgA\nhttps://fb.watch/ps_iH1Wl6H/"]
[3,3,"2024-01-11","ندوة \"صورة العربي في أدب الأطفال العبري - العنصرية في مواجهة البراءة\"","ندوات وأمسيات المجلس الأعلى للثقافة","لجنة فنون الطفل","5م","5م الفنون","رابط اليوتيوب","رابط الفيسبوك"]
[4,4,"2024-01-14","\"أمسية شعرية فلسطين في عيون الشعراء العرب\"","ندوات وأمسيات المجلس الأعلى للثقافة","لجنة الشعر",5,"5:30م المجلس"]
[5,5,"2024-01-15","ندوة \"استخدام الذكاء الإصطناعي لتوثيق التراث\"","ندوات وأمسيات المجلس الأعلى للثقافة","لجنة الثقافة الرقمية والبنية المعلوماتية الثقافية بالتعاون مع المنظمة العربية للتنمية الإدارية وبالتعاون مع مركز جمعة الماجد للثقافة والتراث","12ظ","12ظ أونلاين","رابط اليوتيوب","رابط الفيسبوك"]
[6,6,"2024-01-15","\"قراءة في كتاب المرايا المتجاورة .. تأليف أ.د. جابر عصفور\" - أمسية ثقافية","ندوات وأمسيات المجلس الأعلى للثقافة","أمانة المؤتمرات بالتعاون مع صالون جابر عصفور الثقافي","5م","5م المجلس","رابط اليوتيوب","رابط الفيسبوك"]

{"sheet":"إحصائيات","index":2,"n_rows":11,"n_cols":3,"rows_kept":11,"cut":false,"hidden":false,"merged":[]}
["الرقم","منفذ النشاط","العدد"]
[{"$f":"ROW()-1","v":1},"ندوات وأمسيات",{"$f":"COUNTIF(Sheet1!E9:E1013,\"*\"& B2 &\"*\")","v":136}]
[2,"سلسلة ثقافة تك",{"$f":"COUNTIF(Sheet1!E10:E1014,\"*\"& B3 &\"*\")","v":7}]
[3,"مبادرة وعي",{"$f":"COUNTIF(Sheet1!E11:E1015,\"*\"& B4 &\"*\")","v":20}]
[4,"سلسلة كل يوم شاعر",{"$f":"COUNTIF(Sheet1!E12:E1016,\"*\"& B5 &\"*\")","v":0}]
[5,"مؤتمر",{"$f":"COUNTIF(Sheet1!E13:E1017,\"*\"& B6 &\"*\")","v":0}]
[6,"ملتقى",{"$f":"COUNTIF(Sheet1!E14:E1018,\"*\"& B7 &\"*\")","v":0}]
[7,"مبادرة في حب الحبيب",{"$f":"COUNTIF(Sheet1!E15:E1019,\"*\"& B8 &\"*\")","v":7}]
[8,"ملتقى",{"$f":"COUNTIF(Sheet1!E16:E1020,\"*\"& B9 &\"*\")","v":0}]
[9,"مساجد من مصر",{"$f":"COUNTIF(Sheet1!E17:E1021,\"*\"& B10 &\"*\")","v":31}]
[10,"عدد الفعاليات الكلي",{"$f":"SUM(C2:C10)","v":201}]

{"sheet":"تكافؤ الفرص","index":3,"n_rows":10,"n_cols":8,"rows_kept":10,"cut":false,"hidden":false,"merged":[[2,7,3,7],[2,0,2,1],[2,2,3,2],[2,3,3,3],[2,4,3,4],[2,5,3,5]]}
["ملف الشباب"]
["عن  الفترة من 1/1/2024 حتى 31/3/2024"]
["النشاط",null,"الفئة المستهدفة","عدد المستفيدين","المحافظة","تاريخ النشاط","الجهات المشاركة","ملاحظات"]
["أسم النشاط ونوعـــــــــه","عدد النشاط",null,null,null,null,"(داخل الوزارة – خارج الوزارة )"]
["أمسية شعرية \"إبداعات الشباب\"",1,"الشباب","( 100) حضور\nمتوسط 50 حضور بكل نشاط","كافة المحافظات","2024-02-11","____","ندوات وأمسيات المجلس الأعلى للثقافة"]
["ندوة \"دور الهوية المكانية والبيئية في تأصيل الانتماء لدى الشباب\"",1,"الشباب","( 100) حضور\nمتوسط 50 حضور بكل نشاط","كافة المحافظات","2024-02-18","____","ندوات وأمسيات المجلس الأعلى للثقافة"]
["ملتقى بعنوان \"شباب صنع في مصر.. نحو مستقبل مصر\"",1,"الشباب","( 100) حضور\nمتوسط 50 حضور بكل نشاط","كافة المحافظات","2024-02-18","____","ندوات وأمسيات المجلس الأعلى للثقافة"]
["ندوة \"الشباب وتعزيز الثقافة والهوية الوطنية.. معًا نحو توطين العدالة الثقافية\"",1,"الشباب","( 100) حضور\nمتوسط 50 حضور بكل نشاط","كافة المحافظات","2024-02-28","____","ندوات وأمسيات المجلس الأعلى للثقافة"]
["الورشة الفنية الأولى ورشة تصنيع فانوس رمضان ضمن برنامج \"أهلا رمضان\" للأطفال والشباب",1,"الشباب","( 100) حضور\nمتوسط 50 حضور بكل نشاط","كافة المحافظات","2024-03-21","____","ندوات وأمسيات المجلس الأعلى للثقافة"]
["الورشة الفنية الثانية ورشة تصنيع زينة رمضان ضمن برنامج \"أهلا رمضان\" للأطفال والشباب",1,"الشباب",null,"كافة المحافظات","2024-03-28","____","ندوات وأمسيات المجلس الأعلى للثقافة"]

{"sheet":"تقرير النشاط","index":4,"n_rows":13,"n_cols":11,"rows_kept":13,"cut":false,"hidden":true,"merged":[[4,0,4,8],[6,8,6,9]]}
[]
[]
[]
[]
["تقرير أنشطة وفعاليات الإدارة المركزية للشعب واللجان الثقافية \nعن الفترة من 1 يناير 2024 حتى 6 يونيو 2024"]
[]
["م","الرقم","تاريخ النشاط","اسم النشاط","منفذ النشاط","الجهة المنظمة","موعد النشاط","مكان النشاط","رابط النشاط",null,"ملاحظات"]
[1,1,"2024-01-03","محاضرة \"سكان مصر وتحديات المستقبل\"","ندوات وأمسيات المجلس الأعلى للثقافة","لجنة الجغرافيا والبيئة","5م","5م المجلس","رابط اليوتيوب","رابط الفيس","https://youtu.be/6gMb5z82lE0https://fb.watch/pmj9a62K7R/"]
[2,2,"2024-01-03","ندوة \"منصات التواصل الاجتماعي بين المصداقية والتضليل\"","ندوات وأمسيات المجلس الأعلى للثقافة","لجنة الثقافة الرقمية والبنية المعلوماتية","7م","7م أونلاين","رابط اليوتيوب","رابط الفيس","https://youtu.be/CQPlTi7aIgA\nhttps://fb.watch/ps_iH1Wl6H/"]
[3,3,"2024-01-11","ندوة \"صورة العربي في أدب الأطفال العبري - العنصرية في مواجهة البراءة\"","ندوات وأمسيات المجلس الأعلى للثقافة","لجنة فنون الطفل","5م","5م الفنون","رابط اليوتيوب","رابط الفيسبوك"]
[4,4,"2024-01-14","\"أمسية شعرية فلسطين في عيون الشعراء العرب\"","ندوات وأمسيات المجلس الأعلى للثقافة","لجنة الشعر",5,"5:30م المجلس"]
[5,5,"2024-01-15","ندوة \"استخدام الذكاء الإصطناعي لتوثيق التراث\"","ندوات وأمسيات المجلس الأعلى للثقافة","لجنة الثقافة الرقمية والبنية المعلوماتية الثقافية بالتعاون مع المنظمة العربية للتنمية الإدارية وبالتعاون مع مركز جمعة الماجد للثقافة والتراث","12ظ","12ظ أونلاين","رابط اليوتيوب","رابط الفيسبوك"]
[6,6,"2024-01-15","\"قراءة في كتاب المرايا المتجاورة .. تأليف أ.د. جابر عصفور\" - أمسية ثقافية","ندوات وأمسيات المجلس الأعلى للثقافة","أمانة المؤتمرات بالتعاون مع صالون جابر عصفور الثقافي","5م","5م المجلس","رابط اليوتيوب","رابط الفيسبوك"]

{"sheet":"WordCopy","index":5,"n_rows":12,"n_cols":9,"rows_kept":12,"cut":false,"hidden":true,"merged":[[0,0,0,8]]}
["تقرير أنشطة وفعاليات الإدارة المركزية للشعب واللجان الثقافية \nعن الفترة من 1 يناير 2024 حتى 6 يونيو 2024"]
["م","تاريخ النشاط","اسم النشاط","نوع النشاط","الجهة المنظمة","موعد النشاط","مكان النشاط","رابط اليوتيوب","رابط الفيس"]
[1,"2024-01-11","ندوة \"صورة العربي في أدب الأطفال العبري - العنصرية في مواجهة البراءة\"","ندوات وأمسيات المجلس الأعلى للثقافة","لجنة فنون الطفل","5م","5م الفنون","رابط اليوتيوب","رابط الفيسبوك"]
[2,"2024-01-15","ندوة \"استخدام الذكاء الإصطناعي لتوثيق التراث\"","ندوات وأمسيات المجلس الأعلى للثقافة","لجنة الثقافة الرقمية والبنية المعلوماتية الثقافية بالتعاون مع المنظمة العربية للتنمية الإدارية وبالتعاون مع مركز جمعة الماجد للثقافة والتراث","12ظ","12ظ أونلاين","رابط اليوتيوب","رابط الفيسبوك"]
[3,"2024-01-24","ندوة \"الذكاء الإصطناعي وتشكيل الوعي المجتمعي\"","ندوات وأمسيات المجلس الأعلى للثقافة","لجنة تنمية الثقافة العلمية و التفكير الابتكاري بالتعاون مع لجنة الثقافة الرقمية و البنية المعلوماتية الثقافية","6م","6م المجلس","رابط اليوتيوب","رابط الفيسبوك"]
[4,"2024-01-29","ندوة \"الذكاء الاصطناعى والتحول الرقمي - الفرص والتحديات\"","ندوات وأمسيات المجلس الأعلى للثقافة","أمانة المؤتمرات","12ظ","12ظ قاعة المؤسسات الثقافية - بلازا ١معرض الكتاب","رابط اليوتيوب","رابط الفيسبوك"]
[5,"2024-02-08","ندوة \"تقنيات و أدوات الذكاء الاصطناعي وحماية البيانات الشخصية\"","ندوات وأمسيات المجلس الأعلى للثقافة","لجنة الشباب بالتعاون مع لجنة الثقافة الرقمية و البنية المعلوماتية الثقافية","4م","4م المجلس","رابط اليوتيوب","رابط الفيسبوك"]
[6,"2024-02-11","ندوة \"الذكاء الاصطناعي والترجمة\"","ندوات وأمسيات المجلس الأعلى للثقافة","لجنة الترجمة بالتعاون مع لجنة الثقافة الرقمية والبنية المعلوماتية الثقافية","6م","6م المجلس","رابط اليوتيوب","رابط الفيسبوك"]
[7,"2024-02-13","\"محاضرة \"الذكاء الاصطناعي ونشر الأخبار الكاذبة\"دكتور/ فتحي حسين عامرالحلقة الثامنة والأربعون","سلسلة ثقافة تك","لجنة الثقافة الرقمية والبنية المعلوماتية الثقافية بالتعاون مع أمانة المؤتمرات","7م أونلاين","7م أونلاين","رابط اليوتيوب","رابط الفيسبوك"]
[8,"2024-03-17","مائدة مستديرة \" الذكاء الاصطناعي وإرهاب الألفية الثالثة \"","ندوات وأمسيات المجلس الأعلى للثقافة","لجنة الثقافة الرقمية والبنية المعلوماتية الثقافية","9م","9م أونلاين","رابط اليوتيوب","رابط الفيسبوك"]
[9,"2024-03-28","الورشة الفنية الثانية ورشة تصنيع زينة رمضان ضمن برنامج \"أهلا رمضان\" للأطفال والشباب","ندوات وأمسيات المجلس الأعلى للثقافة","لجنة الفنون التشكيلية والعمارة بالتعاون مع كلية الفنون التطبيقية - جامعة حلوان","10صكلية","10صكلية الفنون التطبيقية - جامعة حلوان",null,"رابط الفيسبوك"]
[10,"2024-04-30","ندوة بعنوان: \" متى وكيف يشعر المواطن المصرى بجودة الحياه \"","ندوات وأمسيات المجلس الأعلى للثقافة","لجنة الفلسفة وعلم الاجتماع والإنثربولوجيا","12 ظالمؤتمرات","12ظالمؤتمرات","رابط اليوتيوب","رابط الفيسبوك"]